Workbook

Sheet Меню 7-10 лет!!!
A2: Меню - ракладка для детских оздоровительных лагерей (дети 7 - 10 лет) Неделя первая
A3: Прием пищи | B3: Наименование блюда и продуктов время приема пищи | C3: Выход в граммах | D3: Б | E3: Ж | F3: У | G3: Энер.ценность (ККАЛ) | H3: Витамин С | I3: № Рецептуры (сборник рецептуры блюд и кулинарных изделий для предприятий общественного питания 2017 г.)
A4: 1 | B4: 2 | C4: 3 | D4: 6 | E4: 7 | F4: 8 | G4: 9 | H4: 10 | I4: 11
A5: День 1 | B5: Бутерброд с маслом сливочным,с сыром | C5: 30/20/10 | D5: 7.59 | E5: 13.44 | F5: 15.55 | G5: 213.27 | H5: 0.14 | I5: №3 Сб 2017 шк
A6: завтрак: | B6: Каша пшенная молочная с маслом сливочным | C6: 220/10 | D6: 9.5 | E6: 11.44 | F6: 48.74 | G6: 336.6 | H6: 0.96 | I6: №173 Сб 2017 шк
A7: с 9.00 по 9.30 | B7: Какао с молоком сгущенным | C7: 200 | D7: 4.19 | E7: 4.33 | F7: 25.47 | G7: 157.6 | H7: 0.55 | I7: №383 Сб 2017 шк
B8: Батон | C8: 24 | D8: 1.8 | E8: 0.7 | F8: 12.34 | G8: 62.88 | H8: 0 | I8: стр 134 табл 6 Дели +,2012
B9: Итого | C9: 514 | D9: =D5+D6+D7+D8 -> 23.08 | E9: =E5+E6+E7+E8 -> 29.91 | F9: =F5+F6+F7+F8 -> 102.10 | G9: =G5+G6+G7+G8 -> 770.35 | H9: =H5+H6+H7+H8 -> 1.65
B10: Распределение калорийности между приемами пищи в течении дня % | I10: =G9/G35 -> 22.58%
A11: обед: | B11: Огурцы свежие порционно | C11: 70 | D11: 0.49 | E11: 0.07 | F11: 1.33 | G11: 8.4 | H11: 3.43 | I11: №71,СБ 2017,шк
A12: с 13.30 по 14.30 | B12: Щи со св. капустой, картофелем с мясными фрикадельками и сметаной | C12: 250/15/10 | D12: 5.02 | E12: 8.21 | F12: 8.37 | G12: 135.37 | H12: 15.9 | I12: №88,105 Сб 2017 шк
B13: Сосиски говяжьи отварные | C13: 100 | D13: 11.02 | E13: 23.86 | F13: 0.38 | G13: 262 | H13: 0 | I13: №243 Сб 2017 шк
B14: Макароны отварные с маслом сливочным | C14: 150/5 | D14: 5.71 | E14: 4.27 | F14: 31.95 | G14: 189 | H14: 0 | I14: №203 Сб 2017 шк
B15: Компот из яблок | C15: 200 | D15: 0.16 | E15: 0.16 | F15: 27.88 | G15: 114.6 | H15: 0.9 | I15: №342 Сб 2017 шк
B16: Хлеб пшеничный/Хлеб сельский | C16: 40/40 | D16: 5.68 | E16: 0.8 | F16: 35.52 | G16: 173.2 | I16: табл 6 стр 134,144 Дели + 2012
B17: Батончик злаковый | C17: 24 | D17: 6.4 | E17: 8 | F17: 66 | G17: 360 | H17: 0
B18: Итого | C18: 904 | D18: =D11+D12+D13+D14+D15+D16+D17 -> 34.48 | E18: =E11+E12+E13+E14+E15+E16+E17 -> 45.37 | F18: =F11+F12+F13+F14+F15+F16+F17 -> 171.43 | G18: =G11+G12+G13+G14+G15+G16+G17 -> 1242.57 | H18: =H11+H12+H13+H14+H15+H16+H17 -> 20.23
B19: Распределение калорийности между приемами пищи в течении дня % | I19: =G18/G35 -> 36.43%
A20: полдник: | B20: Печенье | C20: 30 | D20: 2.25 | E20: 2.94 | F20: 22.32 | G20: 125.1 | H20: 0 | I20: табл 6 стр 136 Дели + 2012
A21: с 16.00 по 16.30 | B21: Нектар плодовый | C21: 200 | D21: 1 | E21: 0.2 | F21: 20.2 | G21: 86.6 | H21: 4 | I21: №389 Сб 2017
B22: Апельсины свежие | C22: 200 | D22: 1.8 | E22: 0.4 | F22: 16.2 | G22: 86 | H22: 120 | I22: таб 9 стр 184 Дели + 2012
B23: Итого | C23: 430 | D23: =D20+D21+D22 -> 5.05 | E23: =E20+E21+E22 -> 3.54 | F23: 58.72 | G23: 297.7 | H23: 124
B24: Распределение калорийности между приемами пищи в течении дня % | I24: =G23/G35 -> 8.7%
A25: ужин: | B25: Помидоры свежие порционно | C25: 70 | D25: 0.77 | E25: 0.14 | F25: 2.66 | G25: 15.4 | H25: 12.25 | I25: №71,СБ 2017,шк
A26: с 19.00 по 20.00 | B26: Плов из куриных грудок | C26: 110/330 | D26: 30.6 | E26: 17.71 | F26: 60.15 | G26: 492.8 | H26: 10.78 | I26: №291 Сб 2017 шк
B27: Чай с шиповником и сахаром | C27: 200/15/15 | D27: 0.58 | E27: 0.23 | F27: 22.25 | G27: 102.6 | H27: 150.03 | I27: №376 СБ 2017,шк
B28: Хлеб пшеничный/Хлеб сельский | C28: 50/50 | D28: 7.1 | E28: 1 | F28: 44.4 | G28: 216.5 | I28: табл 6 стр 134,144 Дели + 2012
B29: Итого | C29: 730 | D29: =D25+D26+D27+D28 -> 39.05 | E29: =E25+E26+E27+E28 -> 19.08 | F29: =F25+F26+F27+F28 -> 129.46 | G29: =G25+G26+G27+G28 -> 827.3 | H29: =H25+H26+H27+H28 -> 173.06
B30: Распределение калорийности между приемами пищи в течении дня % | I30: =G29/G35 -> 24.25%
A31: второй ужин: | B31: Йогурт питьевой 2,5% | C31: 200 | D31: 2.9 | E31: 2.5 | F31: 11 | G31: 69
A32: с 21.00 по 21.30 | B32: Блины с абрикосовой начинкой с маслом сливочным | C32: 130/5 | D32: 4.99 | E32: 6.78 | F32: 30.22 | G32: 204 | I32: ТТК 656 акт проработки от 28.04.2020
B33: Итого | C33: 335 | D33: =D31+D32 -> 7.89 | E33: =E31+E32 -> 9.28 | F33: =F31+F32 -> 41.22 | G33: =G31+G32 -> 273 | H33: =H31+H32 -> 0 | I33: СБ 2017,№450
B34: Распределение калорийности между приемами пищи в течении дня % | I34: =G33/G35 -> 8.0%
B35: ВСЕГО ЗА ПЕРВЫЙ ДЕНЬ: | C35: =C9+C18+C23+C29+C33 -> 2913 | D35: 109.55 | E35: 107.18 | F35: 502.93 | G35: 3,410.92 | H35: 318.94 | I35: =I10+I19+I24+I30+I34 -> 100.00%
A41: Прием пищи | B41: Наименование блюда и продуктов время приема пищи | C41: Выход в граммах | D41: Б | E41: Ж | F41: У | G41: Энер.ценность (ККАЛ) | H41: Витамин С | I41: № Рецептуры (сборник рецептуры блюд и кулинарных изделий для предприятий общественного питания 2017 г.)
A42: 1 | B42: 2 | C42: 3 | D42: 6 | E42: 7 | F42: 8 | G42: 9 | H42: 10 | I42: 11
A43: День 2 | B43: Бутерброд с маслом сливочным | C43: 30/10 | D43: 2.33 | E43: 8.12 | F43: 15.55 | G43: 144.6 | H43: 0 | I43: №1,СБ 2017 шк
A44: завтрак: | B44: Запеканка из творога с молоком сгущенным | C44: 150/25 | D44: 28.17 | E44: 20.25 | F44: 39.36 | G44: 452.2 | H44: 0.64 | I44: №223 Сб 2017 шк
A45: с 9.00 по 9.30 | B45: Кофейный напиток на молоке | C45: 200 | D45: 3.17 | E45: 2.68 | F45: 15.95 | G45: 100.6 | H45: 1.3 | I45: №379 СБ 2017,шк
B46: Батон | C46: 24 | D46: 1.8 | E46: 0.7 | F46: 12.34 | G46: 62.88 | H46: 0 | I46: стр 134 табл 6 Дели +,2012
B47: Итого | C47: 439 | D47: =D43+D44+D45+D46 -> 35.47 | E47: =E43+E44+E45+E46 -> 31.75 | F47: =F43+F44+F45+F46 -> 83.2 | G47: =G43+G44+G45+G46 -> 760.28 | H47: =H43+H44+H45+H46 -> 1.94
B48: Распределение калорийности между приемами пищи в течении дня % | I48: =G47/G73 -> 24.56%
A49: обед: | B49: Помидоры свежие порционно | C49: 70 | D49: 0.77 | E49: 0.14 | F49: 2.66 | G49: 15.4 | H49: 12.25 | I49: №71,СБ 2017,шк
A50: с 13.30 по 14.30 | B50: Суп картофельный с горохом, с куриной фрикаделькой | C50: 250/15 | D50: 7.63 | E50: 7.16 | F50: 17.73 | G50: 178.55 | H50: 6.15 | I50: № 102 Сб 2017
B51: Минтай запеченный с сыром | C51: 110/5 | D51: 18.04 | E51: 9.65 | F51: 4.71 | G51: 177.76 | H51: 1.76 | I51: №232 Сб 2017 шк
B52: Картофель и овощи тушеные в соусе | C52: 150 | D52: 3.26 | E52: 12.59 | F52: 22.66 | G52: 216 | H52: 19.97 | I52: №142 Сб 2017 шк
B53: Кисель из концентрата на плодовых или ягодных экстрактах | C53: 200 | D53: 0.1 | F53: 30.8 | G53: 123.5
B54: Хлеб пшеничный/Хлеб сельский | C54: 40/40 | D54: 5.68 | E54: 0.8 | F54: 35.52 | G54: 173.2 | I54: табл 6 стр 134,144 Дели + 2012
B55: Итого | C55: 880 | D55: =D49+D50+D51+D52+D53+D54 -> 35.48 | E55: =E49+E50+E51+E52+E53+E54 -> 30.34 | F55: =F49+F50+F51+F52+F53+F54 -> 114.08 | G55: =G49+G50+G51+G52+G53+G54 -> 884.41 | H55: =H49+H50+H51+H52+H53+H54 -> 40.13
B56: Распределение калорийности между приемами пищи в течении дня % | I56: =G55/G73 -> 28.57%
A57: полдник: | B57: Печенье | C57: 30 | D57: 2.25 | E57: 2.94 | F57: 22.32 | G57: 125.1 | H57: 0 | I57: табл 6 стр 136 Дели + 2012
A58: с 16.00 по 16.30 | B58: Нектар плодовый | C58: 200 | D58: 1 | E58: 0.2 | F58: 20.2 | G58: 86.6 | H58: 4 | I58: №389 Сб 2017
B59: Яблоко свежее | C59: 200 | D59: 0.8 | E59: 0.8 | F59: 19.6 | G59: 94 | H59: 20 | I59: табл 9 стр 184 Дели + 2012
B60: Итого | C60: 430 | D60: =SUM(D57:D59) -> 4.05 | E60: =SUM(E57:E59) -> 3.94 | F60: 62.12 | G60: 305.7 | H60: 24
B61: Распределение калорийности между приемами пищи в течении дня % | I61: =G60/G73 -> 9.88%
A62: ужин: | B62: Огурцы свежие порционно | C62: 70 | D62: 0.49 | E62: 0.07 | F62: 1.33 | G62: 8.4 | H62: 3.43 | I62: №71,СБ 2017,шк
A63: с 19.00 по 20.00 | B63: Бефстроганов из говядины | C63: 90/40 | D63: 25.07 | E63: 19.53 | F63: 2.35 | G63: 283.04 | H63: 0.02 | I63: №245, СБ шк 2017
B64: Каша полбяная рассыпчатая | C64: 220 | D64: 9.91 | E64: 1.11 | F64: 58.56 | G64: 284.53 | H64: 0 | I64: №171 Сб 2017 шк
B65: Чай с сахаром | C65: 200/15 | D65: 0.07 | E65: 0.02 | F65: 15 | G65: 60 | H65: 0.03 | I65: №376 Сб 2017
B66: Хлеб пшеничный/Хлеб сельский | C66: 50/50 | D66: 7.1 | E66: 1 | F66: 44.4 | G66: 216.5 | I66: табл 6 стр 134,144 Дели + 2012
B67: Итого | C67: 735 | D67: =D62+D63+D64+D65+D66 -> 42.64 | E67: =E62+E63+E64+E65+E66 -> 21.73 | F67: =F62+F63+F64+F65+F66 -> 121.64 | G67: =G62+G63+G64+G65+G66 -> 852.47 | H67: =H62+H63+H64+H65+H66 -> 3.48
B68: Распределение калорийности между приемами пищи в течении дня % | I68: =G67/G73 -> 27.54%
A69: второй ужин: | B69: Катык 2,5% | C69: 200 | D69: 5.8 | E69: 5 | F69: 8.4 | G69: 102 | H69: 0.6 | I69: №386 Сб 2017
A70: с 21.00 по 21.30 | B70: Корж молочный | C70: 50 | D70: 3.26 | E70: 5.62 | F70: 31.8 | G70: 190.67 | H70: 0.03 | I70: №456 Сб 2017
B71: Итого | C71: 250 | D71: =D69+D70 -> 9.06 | E71: =E69+E70 -> 10.62 | F71: =F69+F70 -> 40.20 | G71: =G69+G70 -> 292.67 | H71: =H69+H70 -> 0.63
B72: Распределение калорийности между приемами пищи в течении дня % | I72: =G71/G73 -> 9.5%
B73: ВСЕГО ЗА ВТОРОЙ ДЕНЬ: | C73: =C47+C55+C60+C67+C71 -> 2734 | D73: 126.70 | E73: 98.38 | F73: 421.24 | G73: 3095.53 | H73: 70.18 | I73: =I48+I56+I61+I68+I72 -> 100.00%
A80: Прием пищи | B80: Наименование блюда и продуктов время приема пищи | C80: Выход в граммах | D80: Б | E80: Ж | F80: У | G80: Энер.ценность (ККАЛ) | H80: Витамин С | I80: № Рецептуры (сборник рецептуры блюд и кулинарных изделий для предприятий общественного питания 2017 г.)
A81: 1 | B81: 2 | C81: 3 | D81: 6 | E81: 7 | F81: 8 | G81: 9 | H81: 10 | I81: 11
A82: День 3 | B82: Бутерброд с маслом сливочным | C82: 30/10 | D82: 2.33 | E82: 8.12 | F82: 15.55 | G82: 144.6 | H82: 0 | I82: №1 Сб 2017,шк
A83: завтрак: | B83: Каша пшеничная молочная с маслом сливочным | C83: 220/10 | D83: 9.5 | E83: 11.44 | F83: 48.7 | G83: 336.6 | H83: 1.06 | I83: №173 СБ 2017 шк
A84: с 9.00 по 9.30 | B84: Чай с сахаром с лимоном | C84: 200/15/7 | D84: 0.13 | E84: 0.02 | F84: 15.2 | G84: 62 | H84: 2.83 | I84: №377 СБ 2017 шк
B85: Батон | C85: 24 | D85: 1.8 | E85: 0.7 | F85: 12.34 | G85: 62.88 | H85: 0 | I85: стр 134 табл 6 Дели +,2012
B86: Сыр порционно | C86: 15 | D86: 3.95 | E86: 3.99 | G86: 51.5 | H86: 0.11 | I86: № 15, СБ 2017 шк
B87: Итого | C87: 531 | D87: =D82+D83+D84+D85+D86 -> 17.71 | E87: =E82+E83+E84+E85+E86 -> 24.27 | F87: =F82+F83+F84+F85+F86 -> 91.79 | G87: =G82+G83+G84+G85+G86 -> 657.58 | H87: =H82+H83+H84+H85+H86 -> 4
B88: Распределение калорийности между приемами пищи в течении дня % | I88: =G87/G112 -> 23.26%
A89: обед: | B89: Огурцы свежие порционно | C89: 70 | D89: 0.49 | E89: 0.07 | F89: 1.33 | G89: 8.4 | H89: 3.43 | I89: №71,СБ 2017,шк
A90: с 13.30 по 14.30 | B90: Рассольник ленинградский со сметаной | C90: 250/10 | D90: 2.28 | E90: 6.59 | F90: 12.34 | G90: 123.45 | H90: 8.41 | I90: №96 Сб 2017 шк
B91: Котлеты по-хлыновски (мясо-картофельные) | C91: 90 | D91: 18.72 | E91: 23.49 | F91: 6.03 | G91: 308.61 | H91: 0.22 | I91: №417,СБ рецептур 1996
B92: Каша гречневая рассыпчатая с маслом сливочным | C92: 150/5 | D92: 8.81 | E92: 5.93 | F92: 39.8 | G92: 247 | H92: 0 | I92: №302 Сб 2017 шк
B93: Компот из кураги | C93: 200 | D93: 0.78 | E93: 0.05 | F93: 27.63 | G93: 114.8 | H93: 0.6 | I93: №348 Сб 2017 шк
B94: Хлеб пшеничный/Хлеб сельский | C94: 40/40 | D94: 5.68 | E94: 0.8 | F94: 35.52 | G94: 173.2 | I94: табл 6 стр 134,144 Дели + 2012
B95: Итого | C95: 855 | D95: =D89+D90+D91+D92+D93+D94 -> 36.76 | E95: =E89+E90+E91+E92+E93+E94 -> 36.93 | F95: =F89+F90+F91+F92+F93+F94 -> 122.65 | G95: =G89+G90+G91+G92+G93+G94 -> 975.46 | H95: =H89+H90+H91+H92+H93+H94 -> 12.66
B96: Распределение калорийности между приемами пищи в течении дня % | I96: =G95/G112 -> 34.51%
A97: полдник: | B97: Вафли | C97: 30 | D97: 1.17 | E97: 9.18 | F97: 18.75 | G97: 162.6 | H97: 0 | I97: табл 10 стр 202 Дели + 2012
A98: с 16.00 по 16.30 | B98: Нектар плодовый | C98: 200 | D98: 1 | E98: 0.2 | F98: 20.2 | G98: 86.6 | H98: 4 | I98: №389 Сб 2017
B99: Итого | C99: =SUM(C97:C98) -> 230 | D99: =SUM(D97:D98) -> 2.17 | E99: =SUM(E97:E98) -> 9.38 | F99: 38.95 | G99: 249.2 | H99: 4
B100: Распределение калорийности между приемами пищи в течении дня % | I100: =G99/G112 -> 8.82%
A101: ужин: | B101: Помидоры свежие порционно | C101: 70 | D101: 0.77 | E101: 0.14 | F101: 2.66 | G101: 15.4 | H101: 12.25 | I101: №71,СБ 2017,шк
A102: с 19.00 по 20.00 | B102: Биточки "Солнышко" | C102: 110/5 | D102: 23.97 | E102: 13.22 | F102: 7.85 | G102: 245.3 | H102: 0.11 | I102: ТТК 130 акт проработки 25.12.2018
B103: Овощи на пару | C103: 220 | D103: 3.71 | E103: 4.56 | F103: 8 | G103: 87.07 | H103: 54.57 | I103: ТТК 685,акт проработки от 30.04.2020
B104: Чай с яблоком,с сахаром | C104: 200/15/15 | D104: 0.14 | E104: 0.09 | F104: 16.68 | G104: 68.04 | H104: 1.74 | I104: №376 Сб 2017 шк
B105: Хлеб пшеничный/Хлеб сельский | C105: 50/50 | D105: 7.1 | E105: 1 | F105: 44.4 | G105: 216.5 | I105: табл 6 стр 134,144 Дели + 2012
B106: Итого | C106: 735 | D106: =D101+D102+D103+D104+D105 -> 35.69 | E106: =E101+E102+E103+E104+E105 -> 19.01 | F106: =F101+F102+F103+F104+F105 -> 79.59 | G106: =G101+G102+G103+G104+G105 -> 632.31 | H106: =H101+H102+H103+H104+H105 -> 68.67
B107: Распределение калорийности между приемами пищи в течении дня % | I107: =G106/G112 -> 22.37%
A108: второй ужин: | B108: Ряженка 2,5% | C108: 200 | D108: 5.8 | E108: 5 | F108: 8.4 | G108: 102 | H108: 0.6 | I108: №386 Сб 2017 шк
A109: с 21.00 по 21.30 | B109: Кекс | C109: 50 | D109: 3.05 | E109: 9.23 | F109: 28.71 | G109: 210 | I109: №420 СБ 2017 шк
B110: Итого | C110: 250 | D110: =D108+D109 -> 8.85 | E110: =E108+E109 -> 14.23 | F110: =F108+F109 -> 37.11 | G110: =G108+G109 -> 312 | H110: =H108+H109 -> 0.6
B111: Распределение калорийности между приемами пищи в течении дня % | I111: =G110/G112 -> 11.0%
B112: ВСЕГО ЗА ТРЕТИЙ ДЕНЬ: | C112: =C87+C95+C99+C106+C110 -> 2601 | D112: 101.18 | E112: 103.82 | F112: 370.09 | G112: 2826.55 | H112: 89.93 | I112: =I88+I96+I100+I107+I111 -> 100.00%
A119: Прием пищи | B119: Наименование блюда и продуктов время приема пищи | C119: Выход в граммах | D119: Б | E119: Ж | F119: У | G119: Энер.ценность (ККАЛ) | H119: Витамин С | I119: № Рецептуры (сборник рецептуры блюд и кулинарных изделий для предприятий общественного питания 2017 г.)
A120: 1 | B120: 2 | C120: 3 | D120: 6 | E120: 7 | F120: 8 | G120: 9 | H120: 10 | I120: 11
A121: День 4 | B121: Бутерброд с маслом сливочным,с сыром | C121: 30/20/10 | D121: 7.59 | E121: 13.44 | F121: 15.55 | G121: 213.27 | H121: 0.14 | I121: №3 СБ 2017,шк
A122: завтрак: | B122: Омлет натуральный | C122: 200 | D122: 20.19 | E122: 22.57 | F122: 3.62 | G122: 298.11 | H122: 0.38 | I122: №210 Сб 2017 шк
A123: с 9.00 по 9.30 | B123: Какао с молоком | C123: 200 | D123: 4.08 | E123: 3.5 | F123: 17.6 | G123: 118.6 | H123: 1.6 | I123: №382 Сб 2017 шк
B124: Батон | C124: 24 | D124: 1.8 | E124: 0.7 | F124: 12.34 | G124: 62.88 | H124: 0 | I124: стр 134 табл 6 Дели +,2012
B125: Батончик злаковый | C125: 24 | D125: 6.4 | E125: 8 | F125: 66 | G125: 360 | H125: 0
B126: Итого | C126: 508 | D126: =D121+D122+D123+D124+D125 -> 40.06 | E126: =E121+E122+E123+E124+E125 -> 48.21 | F126: =F121+F122+F123+F124+F125 -> 115.11 | G126: =G121+G122+G123+G124+G125 -> 1,052.86 | H126: =H121+H122+H123+H124+H125 -> 2.12
B127: Распределение калорийности между приемами пищи в течении дня % | I127: =G126/G151 -> 29.21%
A128: обед: | B128: Помидоры свежие порционно | C128: 70 | D128: 0.77 | E128: 0.14 | F128: 2.66 | G128: 15.4 | H128: 12.25 | I128: №71,СБ 2017,шк
A129: с 13.30 по 14.30 | B129: Борщ из свежей капусты с картофелем и сметаной | C129: 250/10 | D129: 2.06 | E129: 6.42 | F129: 11.29 | G129: 119.95 | H129: 10.72 | I129: №82 Сб 2017 шк
B130: Рагу из птицы с овощами | C130: 110/150 | D130: 28.34 | E130: 31.48 | F130: 13.21 | G130: 451.7 | H130: 21.37 | I130: №289, Сб 2017 шк
B131: Компот из апельсинов | C131: 200 | D131: 0.45 | E131: 0.1 | F131: 34 | G131: 141.2 | H131: 12 | I131: №346, Сб 2017 шк
B132: Хлеб пшеничный/Хлеб сельский | C132: 40/40 | D132: 5.68 | E132: 0.8 | F132: 35.52 | G132: 173.2 | I132: табл 6 стр 134,144 Дели + 2012
B133: Итого | C133: 870 | D133: =D128+D129+D130+D131+D132 -> 37.3 | E133: =E128+E129+E130+E131+E132 -> 38.94 | F133: =F128+F129+F130+F131+F132 -> 96.68 | G133: =G128+G129+G130+G131+G132 -> 901.45 | H133: =H128+H129+H130+H131+H132 -> 56.34
B134: Распределение калорийности между приемами пищи в течении дня % | I134: =G133/G151 -> 25.01%
A135: полдник: | B135: Печенье | C135: 30 | D135: 2.25 | E135: 2.94 | F135: 22.32 | G135: 125.1 | H135: 0 | I135: табл 6 стр 136 Дели + 2012
A136: с 16.00 по 16.30 | B136: Яблоко свежее | C136: 200 | D136: 0.8 | E136: 0.8 | F136: 19.6 | G136: 94 | H136: 20 | I136: табл 9 стр 184 Дели + 2012
B137: Нектар плодовый | C137: 200 | D137: 1 | E137: 0.2 | F137: 20.2 | G137: 86.6 | H137: 4 | I137: №389 Сб 2017
B138: Итого | C138: 430 | D138: =SUM(D135:D137) -> 4.05 | E138: =SUM(E135:E137) -> 3.94 | F138: 62.12 | G138: 305.7 | H138: 24
B139: Распределение калорийности между приемами пищи в течении дня % | I139: =G138/G151 -> 8.48%
A140: ужин: | B140: Огурцы свежие порционно | C140: 70 | D140: 0.49 | E140: 0.07 | F140: 1.33 | G140: 8.4 | H140: 3.43 | I140: №71,СБ 2017,шк
A141: с 19.00 по 20.00 | B141: Гуляш из говядины | C141: 90/50 | D141: 25.73 | E141: 28.54 | F141: 5.2 | G141: 368 | H141: 1.66 | I141: №260 Сб 2017 шк
B142: Гороховое пюре | C142: 220 | D142: 19.91 | E142: 2.09 | F142: 51.24 | G142: 301.4 | H142: 0 | I142: №199 Сб 2017 шк
B143: Чай с шиповником и сахаром | C143: 200/15/15 | D143: 0.58 | E143: 0.23 | F143: 22.25 | G143: 102.6 | H143: 150.03 | I143: №376 СБ 2017,шк
B144: Хлеб пшеничный/Хлеб сельский | C144: 50/50 | D144: 7.1 | E144: 1 | F144: 44.4 | G144: 216.5 | I144: табл 6 стр 134,144 Дели + 2012
B145: Итого | C145: 760 | D145: =D140+D141+D142+D143+D144 -> 53.81 | E145: =E140+E141+E142+E143+E144 -> 31.93 | F145: =F140+F141+F142+F143+F144 -> 124.42 | G145: =G140+G141+G142+G143+G144 -> 996.9 | H145: =H140+H141+H142+H143+H144 -> 155.12
B146: Распределение калорийности между приемами пищи в течении дня % | I146: =G145/G151 -> 27.66%
A147: второй ужин: | B147: Молоко кипяченое | C147: 200 | D147: 5.8 | E147: 5.00 | F147: 9.6 | G147: 107 | H147: 2.6 | I147: №385 Сб 2017 шк
A148: с 21.00 по 21.30 | B148: Пирожок с повидлом | C148: 90 | D148: 4.93 | E148: 1.62 | F148: 49.72 | G148: 240 | H148: 0.14
B149: Итого | C149: 290 | D149: =D147+D148 -> 10.73 | E149: =E147+E148 -> 6.62 | F149: =F147+F148 -> 59.32 | G149: =G147+G148 -> 347 | H149: =H147+H148 -> 2.74
B150: Распределение калорийности между приемами пищи в течении дня % | I150: =G149/G151 -> 9.6%
B151: ВСЕГО ЗА ЧЕТВЕРТЫЙ ДЕНЬ: | C151: =C126+C133+C138+C145+C149 -> 2858 | D151: 145.95 | E151: 129.64 | F151: 457.65 | G151: 3,603.91 | H151: 240.32 | I151: =I127+I134+I139+I146+I150 -> 100.00%
A158: Прием пищи | B158: Наименование блюда и продуктов время приема пищи | C158: Выход в граммах | D158: Б | E158: Ж | F158: У | G158: Энер.ценность (ККАЛ) | H158: Витамин С | I158: № Рецептуры (сборник рецептуры блюд и кулинарных изделий для предприятий общественного питания 2017 г.)
A159: 1 | B159: 2 | C159: 3 | D159: 6 | E159: 7 | F159: 8 | G159: 9 | H159: 10 | I159: 11
A160: День 5 | B160: Бутерброд с маслом сливочным | C160: 30/10 | D160: 2.33 | E160: 8.12 | F160: 15.55 | G160: 144.6 | H160: 0 | I160: №1 СБ 2017,шк
A161: завтрак: | B161: Запеканка из творога с молоком сгущенным | C161: 170/25 | D161: 31.69 | E161: 35.34 | F161: 42.76 | G161: 501.56 | H161: 0.69 | I161: №223 Сб 2017 шк
A162: с 9.00 по 9.30 | B162: Кофейный напиток на молоке | C162: 200 | D162: 3.17 | E162: 2.68 | F162: 15.95 | G162: 100.6 | H162: 1.3 | I162: №379 СБ 2017,шк
B163: Батон | C163: 24 | D163: 1.8 | E163: 0.7 | F163: 12.34 | G163: 62.88 | H163: 0 | I163: стр 134 табл 6 Дели +,2012
B164: Итого | C164: 459 | D164: =D160+D161+D162+D163 -> 38.99 | E164: =E160+E161+E162+E163 -> 46.84 | F164: =F160+F161+F162+F163 -> 86.6 | G164: =G160+G161+G162+G163 -> 809.64 | H164: =H160+H161+H162+H163 -> 1.99
B165: Распределение калорийности между приемами пищи в течении дня % | I165: =G164/G189 -> 24.87%
A166: обед: | B166: Огурцы свежие порционно | C166: 70 | D166: 0.49 | E166: 0.07 | F166: 1.33 | G166: 8.4 | H166: 3.43 | I166: №71,СБ 2017,шк
A167: с 13.30 по 14.30 | B167: Суп картофельный с рыбой | C167: 250/30 | D167: 7.97 | E167: 3.11 | F167: 17.1 | G167: 139.8 | H167: 12.16 | I167: №106 Сб 2017
B168: Хинкали из говядины | C168: 250/10 | D168: 27.58 | E168: 21.12 | F168: 62.63 | G168: 566 | I168: ТТК 652 Акт проработки от 27.04.20
B169: Компот из сухофруктов | C169: 200 | D169: 0.66 | E169: 0.09 | F169: 32 | G169: 132.8 | H169: 0.73 | I169: №349 Сб 2017
B170: Хлеб пшеничный/Хлеб сельский | C170: 40/40 | D170: 5.68 | E170: 0.8 | F170: 35.52 | G170: 173.2 | I170: табл 6 стр 134,144 Дели + 2012
B171: Итого | C171: 890 | D171: =D166+D167+D168+D169+D170 -> 42.38 | E171: =E166+E167+E168+E169+E170 -> 25.19 | F171: =F166+F167+F168+F169+F170 -> 148.58 | G171: =G166+G167+G168+G169+G170 -> 1020.2 | H171: =H166+H167+H168+H169+H170 -> 16.32
B172: Распределение калорийности между приемами пищи в течении дня % | I172: =G171/G189 -> 31.34%
A173: полдник: | B173: Печенье | C173: 30 | D173: 2.25 | E173: 2.94 | F173: 22.32 | G173: 125.1 | H173: 0 | I173: табл 6 стр 136 Дели + 2012
A174: с 16.00 по 16.30 | B174: Нектар плодовый | C174: 200 | D174: 1 | E174: 0.2 | F174: 20.2 | G174: 86.6 | H174: 4 | I174: №389 Сб 2017
B175: Апельсины свежие | C175: 200 | D175: 1.8 | E175: 0.4 | F175: 16.2 | G175: 86 | H175: 120 | I175: таб 9 стр 184 Дели + 2012
B176: Итого | C176: 430 | D176: =SUM(D173:D175) -> 5.05 | E176: =SUM(E173:E175) -> 3.54 | F176: 58.72 | G176: 297.7 | H176: 124
B177: Распределение калорийности между приемами пищи в течении дня % | I177: =G176/G189 -> 9.14%
A178: ужин: | B178: Помидоры свежие порционно | C178: 70 | D178: 0.77 | E178: 0.14 | F178: 2.66 | G178: 15.4 | H178: 12.25 | I178: №71,СБ 2017,шк
A179: с 19.00 по 20.00 | B179: Тефтели из говядины (2 вариант) в соусе сметанно-томатном | C179: 90/50 | D179: 10.75 | E179: 11.18 | F179: 12.4 | G179: 193 | H179: 0.29 | I179: №279,331 Сб 2017шк
B180: Картофельное пюре | C180: 220 | D180: 4.49 | E180: 7.04 | F180: 29.98 | G180: 201.3 | H180: 26.63 | I180: №312 Сб 2017 шк
B181: Чай с повидлом | C181: 200/20 | D181: 0.12 | E181: 0.02 | F181: 9.76 | G181: 40 | H181: 0.11 | I181: № 376 Сб 2017 шк
B182: Хлеб пшеничный/Хлеб сельский | C182: 50/50 | D182: 7.1 | E182: 1 | F182: 44.4 | G182: 216.5 | I182: табл 6 стр 134,144 Дели + 2012
B183: Итого | C183: 750 | D183: =SUM(D178:D182) -> 23.23 | E183: =SUM(E178:E182) -> 19.38 | F183: =SUM(F178:F182) -> 99.2 | G183: =SUM(G178:G182) -> 666.2 | H183: =SUM(H178:H182) -> 39.28
B184: Распределение калорийности между приемами пищи в течении дня % | I184: =G183/G189 -> 20.46%
A185: второй ужин: | B185: Катык 2,5% | C185: 200 | D185: 5.8 | E185: 5 | F185: 8.4 | G185: 102 | H185: 0.6 | I185: №386 Сб 2017 шк
A186: с 21.00 по 21.30 | B186: Батончик злаковый | C186: 24 | D186: 6.4 | E186: 8 | F186: 66 | G186: 360 | H186: 0
B187: Итого | C187: 224 | D187: =D185+D186 -> 12.2 | E187: =E185+E186 -> 13 | F187: =F185+F186 -> 74.4 | G187: =G185+G186 -> 462 | H187: =H185+H186 -> 0.6
B188: Распределение калорийности между приемами пищи в течении дня % | I188: =G187/G189 -> 14.2%
B189: ВСЕГО ЗА ПЯТЫЙ ДЕНЬ: | C189: =C164+C171+C176+C183+C187 -> 2753 | D189: 121.85 | E189: 107.95 | F189: 467.5 | G189: 3255.74 | H189: 182.19 | I189: =I165+I172+I177+I184+I188 -> 100.00%
A196: Прием пищи | B196: Наименование блюда и продуктов время приема пищи | C196: Выход в граммах | D196: Б | E196: Ж | F196: У | G196: Энер.ценность (ККАЛ) | H196: Витамин С | I196: № Рецептуры (сборник рецептуры блюд и кулинарных изделий для предприятий общественного питания 2017 г.)
A197: 1 | B197: 2 | C197: 3 | D197: 6 | E197: 7 | F197: 8 | G197: 9 | H197: 10 | I197: 11
A198: День 6 | B198: Бутерброд с маслом сливочным | C198: 30/10 | D198: 2.33 | E198: 8.12 | F198: 15.55 | G198: 144.6 | H198: 0 | I198: №1 СБ 2017,шк
A199: завтрак: | B199: Каша манная молочная с маслом сливочным | C199: 220/10 | D199: 6.71 | E199: 11.07 | F199: 35.6 | G199: 269.5 | H199: 1.29 | I199: №181 Сб 2017 шк
A200: с 9.00 по 9.30 | B200: Чай с молоком и сахаром | C200: 150/50/15 | D200: 1.52 | E200: 1.35 | F200: 15.9 | G200: 81 | H200: 1.33 | I200: №378 Сб 2017 шк
B201: Батон | C201: 24 | D201: 1.8 | E201: 0.7 | F201: 12.34 | G201: 62.88 | H201: 0 | I201: стр 134 табл 6 Дели +,2012
B202: Итого | C202: 509 | D202: =D198+D199+D200+D201 -> 12.36 | E202: =E198+E199+E200+E201 -> 21.24 | F202: =F198+F199+F200+F201 -> 79.39 | G202: =G198+G199+G200+G201 -> 557.98 | H202: =H198+H199+H200+H201 -> 2.62
I203: =G202/G227 -> 20.6%
A204: обед: | B204: Помидоры свежие порционно | C204: 70 | D204: 0.77 | E204: 0.14 | F204: 2.66 | G204: 15.4 | H204: 12.25 | I204: №71,СБ 2017,шк
A205: с 13.30 по 14.30 | B205: Суп из овощей на мясном бульоне | C205: 250 | D205: 1.59 | E205: 4.99 | F205: 9.15 | G205: 95.25 | H205: 10.38 | I205: №99 Сб 2017 шк
B206: Мясо по-татарски | C206: 90/50 | D206: 25.24 | E206: 20.47 | F206: 3.78 | G206: 291.4 | H206: 1.91 | I206: сборник татарской нац кухни,Казань 1997,стр 87
B207: Каша гречневая рассыпчатая | C207: 150 | D207: 8.77 | E207: 2.31 | F207: 39.74 | G207: 214 | H207: 0 | I207: №302 Сб 2017 шк
B208: Кисель из концентрата на плодовых или ягодных экстрактах | C208: 200 | D208: 0.1 | F208: 30.8 | G208: 123.5
B209: Хлеб пшеничный/Хлеб сельский | C209: 40/40 | D209: 5.68 | E209: 0.8 | F209: 35.52 | G209: 173.2 | I209: табл 6 стр 134,144 Дели + 2012
B210: Итого | C210: 890 | D210: =D204+D205+D206+D207+D208+D209 -> 42.15 | E210: =E204+E205+E206+E207+E208+E209 -> 28.71 | F210: =F204+F205+F206+F207+F208+F209 -> 121.65 | G210: =G204+G205+G206+G207+G208+G209 -> 912.75 | H210: =H204+H205+H206+H207+H208+H209 -> 24.54
B211: Распределение калорийности между приемами пищи в течении дня % | I211: =G210/G227 -> 33.7%
A212: полдник: | B212: Вафли | C212: 30 | D212: 1.17 | E212: 9.18 | F212: 18.75 | G212: 162.6 | H212: 0 | I212: табл 10 стр 202 Дели + 2012
A213: с 16.00 по 16.30 | B213: Нектар плодовый | C213: 200 | D213: 1 | E213: 0.2 | F213: 20.2 | G213: 86.6 | H213: 4 | I213: №389 Сб 2017
B214: Итого | C214: 230 | D214: =D213+D212 -> 2.17 | E214: =E213+E212 -> 9.38 | F214: 38.95 | G214: 249.2 | H214: 4
B215: Распределение калорийности между приемами пищи в течении дня % | I215: =G214/G227 -> 9.21%
A216: ужин: | B216: Огурцы свежие порционно | C216: 70 | D216: 0.49 | E216: 0.07 | F216: 1.33 | G216: 8.4 | H216: 3.43 | I216: №71,СБ 2017,шк
A217: с 19.00 по 20.00 | B217: Котлета куриная "Здоровье" | C217: 110 | D217: 24.64 | E217: 8.81 | F217: 7.08 | G217: 207.63 | H217: 0.83 | I217: ТТК 294 по акту проработки от 25.12.2018
B218: Капуста тушеная | C218: 220 | D218: 4.49 | E218: 8.1 | F218: 8.68 | G218: 169.4 | H218: 37.58 | I218: №139 Сб 2017 шк
B219: Чай с сахаром с курагой | C219: 200/15/15 | D219: 0.07 | E219: 0.02 | F219: 15 | G219: 60 | H219: 0.03 | I219: №376 Сб 2017 шк
B220: Хлеб пшеничный/Хлеб сельский | C220: 50/50 | D220: 7.1 | E220: 1 | F220: 44.4 | G220: 216.5 | I220: табл 6 стр 134,144 Дели + 2012
B221: Итого | C221: 730 | D221: =D216+D217+D246+D219+D220 -> 36 | E221: =E216+E217+E246+E219+E220 -> 10.43 | F221: =F216+F217+F246+F219+F220 -> 106.97 | G221: =G216+G217+G246+G219+G220 -> 668.53 | H221: =H216+H217+H246+H219+H220 -> 4.29
B222: Распределение калорийности между приемами пищи в течении дня % | I222: =G221/G227 -> 24.7%
A223: второй ужин: | B223: Ряженка 2,5% | C223: 200 | D223: 5.8 | E223: 5 | F223: 8.4 | G223: 102 | H223: 0.6 | I223: №386 Сб 2017 шк
A224: с 21.00 по 21.30 | B224: Пицца открытая с копченостями | C224: 85 | D224: 8.58 | E224: 9.44 | F224: 24.02 | G224: 215 | H224: 0 | I224: №420 СБ 2017 шк
B225: Итого | C225: 285 | D225: =D223+D224 -> 14.38 | E225: =E223+E224 -> 14.44 | F225: =F223+F224 -> 32.42 | G225: =G223+G224 -> 317 | H225: =H223+H224 -> 0.6
B226: Распределение калорийности между приемами пищи в течении дня % | I226: =G225/G227 -> 11.7%
B227: ВСЕГО ЗА ШЕСТОЙ ДЕНЬ: | C227: =C202+C210+C214+C221+C225 -> 2644 | D227: 107.06 | E227: 84.2 | F227: 379.38 | G227: 2705.46 | H227: 36.05 | I227: =I203+I211+I215+I222+I226 -> 100.00%
A234: Прием пищи | B234: Наименование блюда и продуктов время приема пищи | C234: Выход в граммах | D234: Б | E234: Ж | F234: У | G234: Энер.ценность (ККАЛ) | H234: Витамин С | I234: № Рецептуры (сборник рецептуры блюд и кулинарных изделий для предприятий общественного питания 2017 г.)
A235: 1 | B235: 2 | C235: 3 | D235: 6 | E235: 7 | F235: 8 | G235: 9 | H235: 10 | I235: 11
A236: День 7 | B236: Бутерброд с маслом сливочным,с сыром | C236: 30/20/10 | D236: 7.59 | E236: 13.44 | F236: 15.55 | G236: 213.27 | H236: 0.14 | I236: № 3 СБ 2017 шк
... 269 more rows

Sheet Меню 11-18 лет!!!
A2: Меню - ракладка для детских оздоровительных лагерей (дети 11 - 18 лет) Неделя первая
A3: Прием пищи | B3: Наименование блюда и продуктов время приема пищи | C3: Выход в граммах | D3: Б | E3: Ж | F3: У | G3: Энер.ценность (ККАЛ) | H3: Витамин С | I3: № Рецептуры (сборник рецептуры блюд и кулинарных изделий для предприятий общественного питания 2017 г.)
A4: 1 | B4: 2 | C4: 3 | D4: 6 | E4: 7 | F4: 8 | G4: 9 | H4: 10 | I4: 11
A5: День 1 | B5: Бутерброд с маслом сливочным,с сыром | C5: 30/20/10 | D5: 7.59 | E5: 13.44 | F5: 15.55 | G5: 213.27 | H5: 0.14 | I5: №3 Сб 2017 шк
A6: завтрак: | B6: Каша пшенная молочная с маслом сливочным | C6: 250/10 | D6: 10.78 | E6: 12.01 | F6: 55.37 | G6: 373.5 | H6: 1.09 | I6: №173 Сб 2017 шк
A7: с 9.00 по 9.30 | B7: Какао с молоком сгущенным | C7: 200 | D7: 4.19 | E7: 4.33 | F7: 25.47 | G7: 157.6 | H7: 0.55 | I7: №383 Сб 2017 шк
B8: Батон | C8: 24 | D8: 1.8 | E8: 0.7 | F8: 12.34 | G8: 62.88 | H8: 0 | I8: стр 134 табл 6 Дели +,2012
B9: Итого | C9: 544 | D9: =D5+D6+D7+D8 -> 24.36 | E9: =E5+E6+E7+E8 -> 30.48 | F9: =F5+F6+F7+F8 -> 108.73 | G9: =G5+G6+G7+G8 -> 807.25 | H9: =H5+H6+H7+H8 -> 1.78
B10: Распределение калорийности между приемами пищи в течении дня % | I10: =G9/G35 -> 22.34%
A11: обед: | B11: Огурцы свежие порционно | C11: 80 | D11: 0.56 | E11: 0.08 | F11: 1.52 | G11: 9.6 | H11: 3.92 | I11: №71,СБ 2017,шк
A12: с 13.30 по 14.30 | B12: Щи со св. капустой, картофелем с мясными фрикадельками и сметаной | C12: 350/15/10 | D12: 5.73 | E12: 10.19 | F12: 11.53 | G12: 171.27 | H12: 22.21 | I12: №88,105 Сб 2017 шк
B13: Сосиски говяжьи отварные | C13: 100 | D13: 11.02 | E13: 23.86 | F13: 0.38 | G13: 262 | H13: 0 | I13: №243 Сб 2017 шк
B14: Макароны отварные с маслом сливочным | C14: 200/5 | D14: 7.6 | E14: 4.48 | F14: 42.58 | G14: 241 | H14: 0 | I14: №203 Сб 2017 шк
B15: Компот из яблок | C15: 200 | D15: 0.16 | E15: 0.16 | F15: 27.88 | G15: 114.6 | H15: 0.9 | I15: №342 Сб 2017 шк
B16: Хлеб пшеничный/Хлеб сельский | C16: 40/40 | D16: 5.68 | E16: 0.8 | F16: 35.52 | G16: 173.2 | I16: табл 6 стр 134,144 Дели + 2012
B17: Батончик злаковый | C17: 24 | D17: 6.4 | E17: 8 | F17: 66 | G17: 360 | H17: 0
B18: Итого | C18: 1064 | D18: =D11+D12+D13+D14+D15+D16+D17 -> 37.15 | E18: =E11+E12+E13+E14+E15+E16+E17 -> 47.57 | F18: =F11+F12+F13+F14+F15+F16+F17 -> 185.41 | G18: =G11+G12+G13+G14+G15+G16+G17 -> 1331.67 | H18: =H11+H12+H13+H14+H15+H16+H17 -> 27.03
B19: Распределение калорийности между приемами пищи в течении дня % | I19: =G18/G35 -> 36.86%
A20: полдник: | B20: Печенье | C20: 30 | D20: 2.25 | E20: 2.94 | F20: 22.32 | G20: 125.1 | H20: 0 | I20: табл 6 стр 136 Дели + 2012
A21: с 16.00 по 16.30 | B21: Нектар плодовый | C21: 200 | D21: 1 | E21: 0.2 | F21: 20.2 | G21: 86.6 | H21: 4 | I21: №389 Сб 2017
B22: Апельсины свежие | C22: 250 | D22: 2.25 | E22: 0.5 | F22: 20.25 | G22: 107.5 | H22: 150 | I22: таб 9 стр 184 Дели + 2012
B23: Итого | C23: 480 | D23: =D20+D21+D22 -> 5.5 | E23: =E20+E21+E22 -> 3.64 | F23: 62.77 | G23: 319.2 | H23: 154
B24: Распределение калорийности между приемами пищи в течении дня % | I24: =G23/G35 -> 8.8%
A25: ужин: | B25: Помидоры свежие порционно | C25: 80 | D25: 0.88 | E25: 0.16 | F25: 3.04 | G25: 17.6 | H25: 14 | I25: №71,СБ 2017,шк
A26: с 19.00 по 20.00 | B26: Плов из куриных грудок | C26: 130/350 | D26: 35.28 | E26: 21.43 | F26: 60.22 | G26: 545.2 | H26: 11.25 | I26: №291 Сб 2017 шк
B27: Чай с шиповником и сахаром | C27: 200/15/15 | D27: 0.58 | E27: 0.23 | F27: 22.25 | G27: 102.6 | H27: 150.03 | I27: №376 СБ 2017,шк
B28: Хлеб пшеничный/Хлеб сельский | C28: 50/50 | D28: 7.1 | E28: 1 | F28: 44.4 | G28: 216.5 | I28: табл 6 стр 134,144 Дели + 2012
B29: Итого | C29: 760 | D29: =D25+D26+D27+D28 -> 43.84 | E29: =E25+E26+E27+E28 -> 22.82 | F29: =F25+F26+F27+F28 -> 129.91 | G29: =G25+G26+G27+G28 -> 881.9 | H29: =H25+H26+H27+H28 -> 175.28
B30: Распределение калорийности между приемами пищи в течении дня % | I30: =G29/G35 -> 24.41%
A31: второй ужин: | B31: Йогурт питьевой 2,5% | C31: 200 | D31: 2.9 | E31: 2.5 | F31: 11 | G31: 69
A32: с 21.00 по 21.30 | B32: Блины с абрикосовой начинкой с маслом сливочным | C32: 130/5 | D32: 4.99 | E32: 6.78 | F32: 30.22 | G32: 204 | I32: ТТК 656 акт проработки от 28.04.2020
B33: Итого | C33: 335 | D33: =D31+D32 -> 7.89 | E33: =E31+E32 -> 9.28 | F33: =F31+F32 -> 41.22 | G33: =G31+G32 -> 273 | H33: =H31+H32 -> 0 | I33: СБ 2017,№450
B34: Распределение калорийности между приемами пищи в течении дня % | I34: =G33/G35 -> 7.6%
B35: ВСЕГО ЗА ПЕРВЫЙ ДЕНЬ: | C35: =C9+C18+C23+C29+C33 -> 3183 | D35: 118.74 | E35: 113.79 | F35: 528.04 | G35: 3,613.02 | H35: 358.09 | I35: =I10+I19+I24+I30+I34 -> 100.00%
A41: Прием пищи | B41: Наименование блюда и продуктов время приема пищи | C41: Выход в граммах | D41: Б | E41: Ж | F41: У | G41: Энер.ценность (ККАЛ) | H41: Витамин С | I41: № Рецептуры (сборник рецептуры блюд и кулинарных изделий для предприятий общественного питания 2017 г.)
A42: 1 | B42: 2 | C42: 3 | D42: 6 | E42: 7 | F42: 8 | G42: 9 | H42: 10 | I42: 11
A43: День 2 | B43: Бутерброд с маслом сливочным | C43: 30/10 | D43: 2.33 | E43: 8.12 | F43: 15.55 | G43: 144.6 | H43: 0 | I43: №1,СБ 2017 шк
A44: завтрак: | B44: Запеканка из творога с молоком сгущенным | C44: 180/25 | D44: 31.73 | E44: 23.38 | F44: 44.46 | G44: 526.24 | H44: 0.72 | I44: №223 Сб 2017 шк
A45: с 9.00 по 9.30 | B45: Кофейный напиток на молоке | C45: 200 | D45: 3.17 | E45: 2.68 | F45: 15.95 | G45: 100.6 | H45: 1.3 | I45: №379 СБ 2017,шк
B46: Батон | C46: 24 | D46: 1.8 | E46: 0.7 | F46: 12.34 | G46: 62.88 | H46: 0 | I46: стр 134 табл 6 Дели +,2012
B47: Итого | C47: 469 | D47: =D43+D44+D45+D46 -> 39.03 | E47: =E43+E44+E45+E46 -> 34.88 | F47: =F43+F44+F45+F46 -> 88.3 | G47: =G43+G44+G45+G46 -> 834.32 | H47: =H43+H44+H45+H46 -> 2.02
B48: Распределение калорийности между приемами пищи в течении дня % | I48: =G47/G74 -> 24.25%
A49: обед: | B49: Помидоры свежие порционно | C49: 80 | D49: 0.88 | E49: 0.16 | F49: 3.04 | G49: 17.6 | H49: 14 | I49: №71,СБ 2017,шк
A50: с 13.30 по 14.30 | B50: Суп картофельный с горохом, с куриной фрикаделькой | C50: 350/15 | D50: 9.83 | E50: 9.26 | F50: 24.34 | G50: 237.85 | H50: 8.48 | I50: № 102 Сб 2017
B51: Фрикадельки куриные для супа:
B52: Минтай запеченный с сыром | C52: 130/10 | D52: 22.37 | E52: 12.47 | F52: 5.56 | G52: 223.83 | H52: 2.11 | I52: №232 Сб 2017 шк
B53: Картофель и овощи тушеные в соусе | C53: 200 | D53: 4.35 | E53: 16.79 | F53: 30.21 | G53: 288 | H53: 26.63 | I53: №142 Сб 2017 шк
B54: Кисель из концентрата на плодовых или ягодных экстрактах | C54: 200 | D54: 0.1 | F54: 30.8 | G54: 123.5
B55: Хлеб пшеничный/Хлеб сельский | C55: 40/40 | D55: 5.68 | E55: 0.8 | F55: 35.52 | G55: 173.2 | I55: табл 6 стр 134,144 Дели + 2012
B56: Итого | C56: 1065 | D56: =D49+D50+D52+D53+D54+D55 -> 43.21 | E56: =E49+E50+E52+E53+E54+E55 -> 39.48 | F56: =F49+F50+F52+F53+F54+F55 -> 129.47 | G56: =G49+G50+G52+G53+G54+G55 -> 1063.98 | H56: =H49+H50+H52+H53+H54+H55 -> 51.22
B57: Распределение калорийности между приемами пищи в течении дня % | I57: =G56/G74 -> 30.92%
A58: полдник: | B58: Печенье | C58: 30 | D58: 2.25 | E58: 2.94 | F58: 22.32 | G58: 125.1 | H58: 0 | I58: табл 6 стр 136 Дели + 2012
A59: с 16.00 по 16.30 | B59: Нектар плодовый | C59: 200 | D59: 1 | E59: 0.2 | F59: 20.2 | G59: 86.6 | H59: 4 | I59: №389 Сб 2017
B60: Яблоко свежее | C60: 250 | D60: 1 | E60: 1 | F60: 24.5 | G60: 117.5 | H60: 25 | I60: табл 9 стр 184 Дели + 2012
B61: Итого | C61: 480 | D61: =SUM(D58:D60) -> 4.25 | E61: =SUM(E58:E60) -> 4.14 | F61: 67.02 | G61: 329.2 | H61: 29
B62: Распределение калорийности между приемами пищи в течении дня % | I62: =G61/G74 -> 9.57%
A63: ужин: | B63: Огурцы свежие порционно | C63: 80 | D63: 0.56 | E63: 0.08 | F63: 1.52 | G63: 9.6 | H63: 3.92 | I63: №71,СБ 2017,шк
A64: с 19.00 по 20.00 | B64: Бефстроганов из отварной говядины | C64: 100/40 | D64: 27.79 | E64: 21.48 | F64: 2.35 | G64: 311.19 | H64: 0.02 | I64: №245, СБ шк 2017
B65: Каша полбяная рассыпчатая | C65: 250 | D65: 11.26 | E65: 1.26 | F65: 66.55 | G65: 323.33 | H65: 0 | I65: №171 Сб 2017 шк
B66: Чай с сахаром | C66: 200/15 | D66: 0.07 | E66: 0.02 | F66: 15 | G66: 60 | H66: 0.03 | I66: №376 Сб 2017
B67: Хлеб пшеничный/Хлеб сельский | C67: 50/50 | D67: 7.1 | E67: 1 | F67: 44.4 | G67: 216.5 | I67: табл 6 стр 134,144 Дели + 2012
B68: Итого | C68: 785 | D68: =D63+D64+D65+D66+D67 -> 46.78 | E68: =E63+E64+E65+E66+E67 -> 23.84 | F68: =F63+F64+F65+F66+F67 -> 129.82 | G68: =G63+G64+G65+G66+G67 -> 920.62 | H68: =H63+H64+H65+H66+H67 -> 3.97
B69: Распределение калорийности между приемами пищи в течении дня % | I69: =G68/G74 -> 26.76%
A70: второй ужин: | B70: Катык 2,5% | C70: 200 | D70: 5.8 | E70: 5 | F70: 8.4 | G70: 102 | H70: 0.6 | I70: №386 Сб 2017
A71: с 21.00 по 21.30 | B71: Корж молочный | C71: 50 | D71: 3.26 | E71: 5.62 | F71: 31.8 | G71: 190.67 | H71: 0.03 | I71: №456 Сб 2017
B72: Итого | C72: 250 | D72: =D70+D71 -> 9.06 | E72: =E70+E71 -> 10.62 | F72: =F70+F71 -> 40.20 | G72: =G70+G71 -> 292.67 | H72: =H70+H71 -> 0.63
B73: Распределение калорийности между приемами пищи в течении дня % | I73: =G72/G74 -> 8.5%
B74: ВСЕГО ЗА ВТОРОЙ ДЕНЬ: | C74: =C47+C56+C61+C68+C72 -> 3049 | D74: 142.33 | E74: 112.96 | F74: 454.81 | G74: 3440.79 | H74: 86.84 | I74: =I48+I57+I62+I69+I73 -> 100.00%
A81: Прием пищи | B81: Наименование блюда и продуктов время приема пищи | C81: Выход в граммах | D81: Б | E81: Ж | F81: У | G81: Энер.ценность (ККАЛ) | H81: Витамин С | I81: № Рецептуры (сборник рецептуры блюд и кулинарных изделий для предприятий общественного питания 2017 г.)
A82: 1 | B82: 2 | C82: 3 | D82: 6 | E82: 7 | F82: 8 | G82: 9 | H82: 10 | I82: 11
A83: День 3 | B83: Бутерброд с маслом сливочным | C83: 30/10 | D83: 2.33 | E83: 8.12 | F83: 15.55 | G83: 144.6 | H83: 0 | I83: №1 Сб 2017,шк
A84: завтрак: | B84: Каша пшеничная молочная с маслом сливочным | C84: 250/10 | D84: 10.78 | E84: 12.01 | F84: 55.32 | G84: 373.5 | H84: 1.2 | I84: №173 СБ 2017 шк
A85: с 9.00 по 9.30 | B85: Чай с сахаром с лимоном | C85: 200/15/7 | D85: 0.13 | E85: 0.02 | F85: 15.2 | G85: 62 | H85: 2.83 | I85: №377 СБ 2017 шк
B86: Батон | C86: 24 | D86: 1.8 | E86: 0.7 | F86: 12.34 | G86: 62.88 | H86: 0 | I86: стр 134 табл 6 Дели +,2012
B87: Сыр порционно | C87: 20 | D87: 5.27 | E87: 5.32 | G87: 68.66 | H87: 0.15 | I87: № 15, СБ 2017 шк
B88: Итого | C88: 566 | D88: =D83+D84+D85+D86+D87 -> 20.31 | E88: =E83+E84+E85+E86+E87 -> 26.17 | F88: =F83+F84+F85+F86+F87 -> 98.41 | G88: =G83+G84+G85+G86+G87 -> 711.64 | H88: =H83+H84+H85+H86+H87 -> 4.18
B89: Распределение калорийности между приемами пищи в течении дня % | I89: =G88/G113 -> 23.08%
A90: обед: | B90: Огурцы свежие порционно | C90: 80 | D90: 0.56 | E90: 0.08 | F90: 1.52 | G90: 9.6 | H90: 3.92 | I90: №71,СБ 2017,шк
A91: с 13.30 по 14.30 | B91: Рассольник ленинградский со сметаной | C91: 350/10 | D91: 3.09 | E91: 8.63 | F91: 17.13 | G91: 166.35 | H91: 11.76 | I91: №96 Сб 2017 шк
B92: Котлеты по-хлыновски (мясо-картофельные) | C92: 100 | D92: 20.8 | E92: 26.1 | F92: 6.7 | G92: 342.9 | H92: 0.24 | I92: №417,СБ рецептур 1996
B93: Каша гречневая рассыпчатая с маслом сливочным | C93: 200/5 | D93: 11.73 | E93: 6.7 | F93: 53.04 | G93: 318.33 | H93: 0 | I93: №302 Сб 2017 шк
B94: Компот из кураги | C94: 200 | D94: 0.78 | E94: 0.05 | F94: 27.63 | G94: 114.8 | H94: 0.6 | I94: №348 Сб 2017 шк
B95: Хлеб пшеничный/Хлеб сельский | C95: 40/40 | D95: 5.68 | E95: 0.8 | F95: 35.52 | G95: 173.2 | I95: табл 6 стр 134,144 Дели + 2012
B96: Итого | C96: 1025 | D96: =D90+D91+D92+D93+D94+D95 -> 42.64 | E96: =E90+E91+E92+E93+E94+E95 -> 42.36 | F96: =F90+F91+F92+F93+F94+F95 -> 141.54 | G96: =G90+G91+G92+G93+G94+G95 -> 1125.18 | H96: =H90+H91+H92+H93+H94+H95 -> 16.52
B97: Распределение калорийности между приемами пищи в течении дня % | I97: =G96/G113 -> 36.50%
A98: полдник: | B98: Вафли | C98: 30 | D98: 1.17 | E98: 9.18 | F98: 18.75 | G98: 162.6 | H98: 0 | I98: табл 10 стр 202 Дели + 2012
A99: с 16.00 по 16.30 | B99: Нектар плодовый | C99: 200 | D99: 1 | E99: 0.2 | F99: 20.2 | G99: 86.6 | H99: 4 | I99: №389 Сб 2017
B100: Итого | C100: =SUM(C98:C99) -> 230 | D100: =SUM(D98:D99) -> 2.17 | E100: =SUM(E98:E99) -> 9.38 | F100: 38.95 | G100: 249.2 | H100: 4
B101: Распределение калорийности между приемами пищи в течении дня % | I101: =G100/G113 -> 8.08%
A102: ужин: | B102: Помидоры свежие порционно | C102: 80 | D102: 0.88 | E102: 0.16 | F102: 3.04 | G102: 17.6 | H102: 14 | I102: №71,СБ 2017,шк
A103: с 19.00 по 20.00 | B103: Биточки "Солнышко" с маслом сливочным | C103: 130/5 | D103: 28.32 | E103: 14.97 | F103: 9.27 | G103: 283.9 | H103: 0.13 | I103: ТТК 130 акт проработки 25.12.2018
B104: Овощи на пару | C104: 250 | D104: 4.22 | E104: 5.18 | F104: 9.09 | G104: 98.94 | H104: 62.01 | I104: ТТК 685,акт проработки от 30.04.2020
B105: Чай с яблоком,с сахаром | C105: 200/15/15 | D105: 0.14 | E105: 0.09 | F105: 16.68 | G105: 68.04 | H105: 1.74 | I105: №376 Сб 2017 шк
B106: Хлеб пшеничный/Хлеб сельский | C106: 50/50 | D106: 7.1 | E106: 1 | F106: 44.4 | G106: 216.5 | I106: табл 6 стр 134,144 Дели + 2012
B107: Итого | C107: 795 | D107: =D102+D103+D104+D105+D106 -> 40.66 | E107: =E102+E103+E104+E105+E106 -> 21.4 | F107: =F102+F103+F104+F105+F106 -> 82.48 | G107: =G102+G103+G104+G105+G106 -> 684.98 | H107: =H102+H103+H104+H105+H106 -> 77.88
B108: Распределение калорийности между приемами пищи в течении дня % | I108: =G107/G113 -> 22.22%
A109: второй ужин: | B109: Ряженка 2,5% | C109: 200 | D109: 5.8 | E109: 5 | F109: 8.4 | G109: 102 | H109: 0.6 | I109: №386 Сб 2017 шк
A110: с 21.00 по 21.30 | B110: Кекс | C110: 50 | D110: 3.05 | E110: 8.23 | F110: 28.71 | G110: 210 | H110: 0
B111: Итого | C111: 250 | D111: =D109+D110 -> 8.85 | E111: =E109+E110 -> 13.23 | F111: =F109+F110 -> 37.11 | G111: =G109+G110 -> 312 | H111: =H109+H110 -> 0.6
B112: Распределение калорийности между приемами пищи в течении дня % | I112: =G111/G113 -> 10.1%
B113: ВСЕГО ЗА ТРЕТИЙ ДЕНЬ: | C113: =C88+C96+C100+C107+C111 -> 2866 | D113: 114.63 | E113: 112.54 | F113: 398.49 | G113: 3083 | H113: 103.18 | I113: =I89+I97+I101+I108+I112 -> 100.00%
A120: Прием пищи | B120: Наименование блюда и продуктов время приема пищи | C120: Выход в граммах | D120: Б | E120: Ж | F120: У | G120: Энер.ценность (ККАЛ) | H120: Витамин С | I120: № Рецептуры (сборник рецептуры блюд и кулинарных изделий для предприятий общественного питания 2017 г.)
A121: 1 | B121: 2 | C121: 3 | D121: 6 | E121: 7 | F121: 8 | G121: 9 | H121: 10 | I121: 11
A122: День 4 | B122: Бутерброд с маслом сливочным,с сыром | C122: 30/20/10 | D122: 7.59 | E122: 13.44 | F122: 15.55 | G122: 213.27 | H122: 0.14 | I122: №3 СБ 2017,шк
A123: завтрак: | B123: Омлет натуральный | C123: 200 | D123: 20.19 | E123: 22.57 | F123: 3.62 | G123: 298.11 | H123: 0.38 | I123: №210 Сб 2017 шк
A124: с 9.00 по 9.30 | B124: Какао с молоком | C124: 200 | D124: 4.08 | E124: 3.5 | F124: 17.6 | G124: 118.6 | H124: 1.6 | I124: №382 Сб 2017 шк
B125: Батон | C125: 24 | D125: 1.8 | E125: 0.7 | F125: 12.34 | G125: 62.88 | H125: 0 | I125: стр 134 табл 6 Дели +,2012
B126: Батончик злаковый | C126: 24 | D126: 6.4 | E126: 8 | F126: 66 | G126: 360 | H126: 0
B127: Итого | C127: 508 | D127: =D122+D123+D124+D125+D126 -> 40.06 | E127: =E122+E123+E124+E125+E126 -> 48.21 | F127: =F122+F123+F124+F125+F126 -> 115.11 | G127: =G122+G123+G124+G125+G126 -> 1,052.86 | H127: =H122+H123+H124+H125+H126 -> 2.12
B128: Распределение калорийности между приемами пищи в течении дня % | I128: =G127/G152 -> 28.30%
A129: обед: | B129: Помидоры свежие порционно | C129: 80 | D129: 0.88 | E129: 0.16 | F129: 3.04 | G129: 17.6 | H129: 14 | I129: №71,СБ 2017,шк
A130: с 13.30 по 14.30 | B130: Борщ из свежей капусты с картофелем и сметаной | C130: 350/10 | D130: 2.06 | E130: 6.42 | F130: 11.29 | G130: 119.95 | H130: 10.72 | I130: №82 Сб 2017 шк
B131: Рагу из птицы с овощами | C131: 130/330 | D131: 32.2 | E131: 26.33 | F131: 24.5 | G131: 463.8 | H131: 19.9 | I131: №289, Сб 2017 шк
B132: Компот из апельсинов | C132: 200 | D132: 0.45 | E132: 0.1 | F132: 34 | G132: 141.2 | H132: 12 | I132: №346, Сб 2017 шк
B133: Хлеб пшеничный/Хлеб сельский | C133: 40/40 | D133: 5.68 | E133: 0.8 | F133: 35.52 | G133: 173.2 | I133: табл 6 стр 134,144 Дели + 2012
B134: Итого | C134: 1050 | D134: =D129+D130+D131+D132+D133 -> 41.27 | E134: =E129+E130+E131+E132+E133 -> 33.81 | F134: =F129+F130+F131+F132+F133 -> 108.35 | G134: =G129+G130+G131+G132+G133 -> 915.75 | H134: =H129+H130+H131+H132+H133 -> 56.62
B135: Распределение калорийности между приемами пищи в течении дня % | I135: =G134/G152 -> 24.61%
A136: полдник: | B136: Печенье | C136: 30 | D136: 2.25 | E136: 2.94 | F136: 22.32 | G136: 125.1 | H136: 0 | I136: табл 6 стр 136 Дели + 2012
A137: с 16.00 по 16.30 | B137: Яблоко свежее | C137: 250 | D137: 1 | E137: 1 | F137: 24.5 | G137: 117.5 | H137: 25 | I137: табл 9 стр 184 Дели + 2012
B138: Нектар плодовый | C138: 200 | D138: 1 | E138: 0.2 | F138: 20.2 | G138: 86.6 | H138: 4 | I138: №389 Сб 2017
B139: Итого | C139: 480 | D139: =SUM(D136:D138) -> 4.25 | E139: =SUM(E136:E138) -> 4.14 | F139: 67.02 | G139: 329.2 | H139: 29
B140: Распределение калорийности между приемами пищи в течении дня % | I140: =G139/G152 -> 8.85%
A141: ужин: | B141: Огурцы свежие порционно | C141: 80 | D141: 0.56 | E141: 0.08 | F141: 1.52 | G141: 9.6 | H141: 3.92 | I141: №71,СБ 2017,шк
A142: с 19.00 по 20.00 | B142: Гуляш из говядины | C142: 100/50 | D142: 28.41 | E142: 31.28 | F142: 5.2 | G142: 404.4 | H142: 1.66 | I142: №260 Сб 2017 шк
B143: Гороховое пюре | C143: 250 | D143: 22.62 | E143: 2.38 | F143: 58.23 | G143: 342.5 | H143: 0 | I143: №199 Сб 2017 шк
B144: Чай с шиповником и сахаром | C144: 200/15/15 | D144: 0.58 | E144: 0.23 | F144: 22.25 | G144: 102.6 | H144: 150.03 | I144: №376 СБ 2017,шк
B145: Хлеб пшеничный/Хлеб сельский | C145: 50/50 | D145: 7.1 | E145: 1 | F145: 44.4 | G145: 216.5 | I145: табл 6 стр 134,144 Дели + 2012
B146: Итого | C146: 810 | D146: =D141+D142+D143+D144+D145 -> 59.27 | E146: =E141+E142+E143+E144+E145 -> 34.97 | F146: =F141+F142+F143+F144+F145 -> 131.6 | G146: =G141+G142+G143+G144+G145 -> 1075.6 | H146: =H141+H142+H143+H144+H145 -> 155.61
B147: Распределение калорийности между приемами пищи в течении дня % | I147: =G146/G152 -> 28.91%
A148: второй ужин: | B148: Молоко кипяченое | C148: 200 | D148: 5.8 | E148: 5.00 | F148: 9.6 | G148: 107 | H148: 2.6 | I148: №385 Сб 2017 шк
A149: с 21.00 по 21.30 | B149: Пирожок с повидлом | C149: 90 | D149: 4.93 | E149: 1.62 | F149: 49.72 | G149: 240 | H149: 0.14
B150: Итого | C150: 290 | D150: =D148+D149 -> 10.73 | E150: =E148+E149 -> 6.62 | F150: =F148+F149 -> 59.32 | G150: =G148+G149 -> 347 | H150: =H148+H149 -> 2.74
B151: Распределение калорийности между приемами пищи в течении дня % | I151: =G150/G152 -> 9.3%
B152: ВСЕГО ЗА ЧЕТВЕРТЫЙ ДЕНЬ: | C152: =C127+C134+C139+C146+C150 -> 3138 | D152: 155.58 | E152: 127.75 | F152: 481.4 | G152: 3720.41 | H152: 246.09 | I152: =I128+I135+I140+I147+I151 -> 100.00%
A159: Прием пищи | B159: Наименование блюда и продуктов время приема пищи | C159: Выход в граммах | D159: Б | E159: Ж | F159: У | G159: Энер.ценность (ККАЛ) | H159: Витамин С | I159: № Рецептуры (сборник рецептуры блюд и кулинарных изделий для предприятий общественного питания 2017 г.)
A160: 1 | B160: 2 | C160: 3 | D160: 6 | E160: 7 | F160: 8 | G160: 9 | H160: 10 | I160: 11
A161: День 5 | B161: Бутерброд с маслом сливочным | C161: 30/10 | D161: 2.33 | E161: 8.12 | F161: 15.55 | G161: 144.6 | H161: 0 | I161: №1 СБ 2017,шк
A162: завтрак: | B162: Запеканка из творога с молоком сгущенным | C162: 180/25 | D162: 31.73 | E162: 23.38 | F162: 44.46 | G162: 526.24 | H162: 0.72 | I162: №223 Сб 2017 шк
A163: с 9.00 по 9.30 | B163: Кофейный напиток на молоке | C163: 200 | D163: 3.17 | E163: 2.68 | F163: 15.95 | G163: 100.6 | H163: 1.3 | I163: №379 СБ 2017,шк
B164: Батон | C164: 24 | D164: 1.8 | E164: 0.7 | F164: 12.34 | G164: 62.88 | H164: 0 | I164: стр 134 табл 6 Дели +,2012
B165: Итого | C165: 469 | D165: =D161+D162+D163+D164 -> 39.0 | E165: =E161+E162+E163+E164 -> 34.9 | F165: =F161+F162+F163+F164 -> 88.3 | G165: =G161+G162+G163+G164 -> 834.3 | H165: =H161+H162+H163+H164 -> 2.0
B166: Распределение калорийности между приемами пищи в течении дня % | I166: =G165/G190 -> 24.57%
A167: обед: | B167: Огурцы свежие порционно | C167: 80 | D167: 0.56 | E167: 0.08 | F167: 1.52 | G167: 9.6 | H167: 3.92 | I167: №71,СБ 2017,шк
A168: с 13.30 по 14.30 | B168: Суп картофельный с рыбой | C168: 350/30 | D168: 8.91 | E168: 4.23 | F168: 23.85 | G168: 185.4 | H168: 16.96 | I168: №106 Сб 2017
B169: Хинкали из говядины | C169: 250/10 | D169: 27.58 | E169: 21.12 | F169: 62.63 | G169: 566 | I169: ТТК 652 Акт проработки от 27.04.20
B170: Компот из сухофруктов | C170: 200 | D170: 0.66 | E170: 0.09 | F170: 32 | G170: 132.8 | H170: 0.73 | I170: №349 Сб 2017
B171: Хлеб пшеничный/Хлеб сельский | C171: 40/40 | D171: 5.68 | E171: 0.8 | F171: 35.52 | G171: 173.2 | I171: табл 6 стр 134,144 Дели + 2012
B172: Итого | C172: 1000 | D172: =D167+D168+D169+D170+D171 -> 43.39 | E172: =E167+E168+E169+E170+E171 -> 26.32 | F172: =F167+F168+F169+F170+F171 -> 155.52 | G172: =G167+G168+G169+G170+G171 -> 1067 | H172: =H167+H168+H169+H170+H171 -> 21.61
B173: Распределение калорийности между приемами пищи в течении дня % | I173: =G172/G190 -> 31.43%
A174: полдник: | B174: Печенье | C174: 30 | D174: 2.25 | E174: 2.94 | F174: 22.32 | G174: 125.1 | H174: 0 | I174: табл 6 стр 136 Дели + 2012
A175: с 16.00 по 16.30 | B175: Нектар плодовый | C175: 200 | D175: 1 | E175: 0.2 | F175: 20.2 | G175: 86.6 | H175: 4 | I175: №389 Сб 2017
B176: Апельсины свежие | C176: 250 | D176: 2.25 | E176: 0.5 | F176: 20.25 | G176: 107.5 | H176: 150 | I176: таб 9 стр 184 Дели + 2012
B177: Итого | C177: 480 | D177: =SUM(D174:D176) -> 5.5 | E177: =SUM(E174:E176) -> 3.64 | F177: 62.77 | G177: 319.2 | H177: 154
B178: Распределение калорийности между приемами пищи в течении дня % | I178: =G177/G190 -> 9.40%
A179: ужин: | B179: Помидоры свежие порционно | C179: 80 | D179: 0.88 | E179: 0.16 | F179: 3.04 | G179: 17.6 | H179: 14 | I179: №71,СБ 2017,шк
A180: с 19.00 по 20.00 | B180: Тефтели из говядины (2 вариант) в соусе сметанно-томатном | C180: 100/50 | D180: 11.85 | E180: 12.15 | F180: 13.39 | G180: 210 | H180: 0.29 | I180: №279,331 Сб 2017шк
B181: Картофельное пюре | C181: 250 | D181: 5.1 | E181: 8 | F181: 34.07 | G181: 228.75 | H181: 30.26 | I181: №312 Сб 2017 шк
B182: Чай с повидлом | C182: 200/20 | D182: 0.12 | E182: 0.02 | F182: 9.76 | G182: 40 | H182: 0.11 | I182: № 376 Сб 2017 шк
B183: Хлеб пшеничный/Хлеб сельский | C183: 50/50 | D183: 7.1 | E183: 1 | F183: 44.4 | G183: 216.5 | I183: табл 6 стр 134,144 Дели + 2012
B184: Итого | C184: 800 | D184: =SUM(D179:D183) -> 25.05 | E184: =SUM(E179:E183) -> 21.33 | F184: =SUM(F179:F183) -> 104.66 | G184: =SUM(G179:G183) -> 712.85 | H184: =SUM(H179:H183) -> 44.66
B185: Распределение калорийности между приемами пищи в течении дня % | I185: =G184/G190 -> 20.99%
A186: второй ужин: | B186: Катык 2,5% | C186: 200 | D186: 5.8 | E186: 5 | F186: 8.4 | G186: 102 | H186: 0.6 | I186: №386 Сб 2017 шк
A187: с 21.00 по 21.30 | B187: Батончик злаковый | C187: 24 | D187: 6.4 | E187: 8 | F187: 66 | G187: 360 | H187: 0
B188: Итого | C188: 224 | D188: =D186+D187 -> 12.2 | E188: =E186+E187 -> 13 | F188: =F186+F187 -> 74.4 | G188: =G186+G187 -> 462 | H188: =H186+H187 -> 0.6
B189: Распределение калорийности между приемами пищи в течении дня % | I189: =G188/G190 -> 13.6%
B190: ВСЕГО ЗА ПЯТЫЙ ДЕНЬ: | C190: =C165+C172+C177+C184+C188 -> 2973 | D190: 125.2 | E190: 99.2 | F190: 485.7 | G190: 3395.4 | H190: 222.9 | I190: =I166+I173+I178+I185+I189 -> 100.00%
A197: Прием пищи | B197: Наименование блюда и продуктов время приема пищи | C197: Выход в граммах | D197: Б | E197: Ж | F197: У | G197: Энер.ценность (ККАЛ) | H197: Витамин С | I197: № Рецептуры (сборник рецептуры блюд и кулинарных изделий для предприятий общественного питания 2017 г.)
A198: 1 | B198: 2 | C198: 3 | D198: 6 | E198: 7 | F198: 8 | G198: 9 | H198: 10 | I198: 11
A199: День 6 | B199: Бутерброд с маслом сливочным | C199: 30/10 | D199: 2.33 | E199: 8.12 | F199: 15.55 | G199: 144.6 | H199: 0 | I199: №1 СБ 2017,шк
A200: завтрак: | B200: Каша манная молочная с маслом сливочным | C200: 250/10 | D200: 7.61 | E200: 11.59 | F200: 40.44 | G200: 297.25 | H200: 1.47 | I200: №181 Сб 2017 шк
A201: с 9.00 по 9.30 | B201: Чай с молоком и сахаром | C201: 150/50/15 | D201: 1.52 | E201: 1.35 | F201: 15.9 | G201: 81 | H201: 1.33 | I201: №378 Сб 2017 шк
B202: Батон | C202: 24 | D202: 1.8 | E202: 0.7 | F202: 12.34 | G202: 62.88 | H202: 0 | I202: стр 134 табл 6 Дели +,2012
B203: Итого | C203: 539 | D203: =D199+D200+D201+D202 -> 13.26 | E203: =E199+E200+E201+E202 -> 21.76 | F203: =F199+F200+F201+F202 -> 84.23 | G203: =G199+G200+G201+G202 -> 585.73 | H203: =H199+H200+H201+H202 -> 2.8
I204: =G203/G228 -> 20.0%
A205: обед: | B205: Помидоры свежие порционно | C205: 80 | D205: 0.88 | E205: 0.16 | F205: 3.04 | G205: 17.6 | H205: 14 | I205: №71,СБ 2017,шк
A206: с 13.30 по 14.30 | B206: Суп из овощей | C206: 350 | D206: 2.23 | E206: 6.99 | F206: 12.81 | G206: 133.35 | H206: 14.53 | I206: №99 Сб 2017 шк
B207: Мясо по-татарски | C207: 100/50 | D207: 27.96 | E207: 22.42 | F207: 3.78 | G207: 319.55 | H207: 1.91 | I207: сборник татарской нац кухни,Казань 1997,стр 87
B208: Каша гречневая рассыпчатая | C208: 200 | D208: 11.69 | E208: 3.08 | F208: 52.98 | G208: 285.33 | H208: 0 | I208: №302 Сб 2017 шк
B209: Кисель из концентрата на плодовых или ягодных экстрактах | C209: 200 | D209: 0.1 | F209: 30.8 | G209: 123.5
B210: Хлеб пшеничный/Хлеб сельский | C210: 40/40 | D210: 5.68 | E210: 0.8 | F210: 35.52 | G210: 173.2 | I210: табл 6 стр 134,144 Дели + 2012
B211: Итого | C211: 1060 | D211: =D205+D206+D207+D208+D209+D210 -> 48.54 | E211: =E205+E206+E207+E208+E209+E210 -> 33.45 | F211: =F205+F206+F207+F208+F209+F210 -> 138.93 | G211: =G205+G206+G207+G208+G209+G210 -> 1052.53 | H211: =H205+H206+H207+H208+H209+H210 -> 30.44
B212: Распределение калорийности между приемами пищи в течении дня % | I212: =G211/G228 -> 35.9%
A213: полдник: | B213: Вафли | C213: 30 | D213: 1.17 | E213: 9.18 | F213: 18.75 | G213: 162.6 | H213: 0 | I213: табл 10 стр 202 Дели + 2012
A214: с 16.00 по 16.30 | B214: Нектар плодовый | C214: 200 | D214: 1 | E214: 0.2 | F214: 20.2 | G214: 86.6 | H214: 4 | I214: №389 Сб 2017
B215: Итого | C215: 230 | D215: =D214+D213 -> 2.17 | E215: =E214+E213 -> 9.38 | F215: 38.95 | G215: 249.2 | H215: 4
B216: Распределение калорийности между приемами пищи в течении дня % | I216: =G215/G228 -> 8.51%
A217: ужин: | B217: Огурцы свежие порционно | C217: 80 | D217: 0.56 | E217: 0.08 | F217: 1.52 | G217: 9.6 | H217: 3.92 | I217: №71,СБ 2017,шк
A218: с 19.00 по 20.00 | B218: Котлета куриная "Здоровье" | C218: 130 | D218: 29.12 | E218: 10.41 | F218: 8.37 | G218: 245.38 | H218: 0.98 | I218: ТТК 294 по акту проработки от 25.12.2018
B219: Капуста тушеная | C219: 250 | D219: 5.1 | E219: 9.2 | F219: 9.86 | G219: 192.5 | H219: 42.7 | I219: №139 Сб 2017 шк
B220: Чай с сахаром с курагой | C220: 200/15/15 | D220: 0.07 | E220: 0.02 | F220: 15 | G220: 60 | H220: 0.03 | I220: №376 Сб 2017 шк
B221: Хлеб пшеничный/Хлеб сельский | C221: 50/50 | D221: 7.1 | E221: 1 | F221: 44.4 | G221: 216.5 | I221: табл 6 стр 134,144 Дели + 2012
B222: Итого | C222: 790 | D222: =D217+D218+D219++D220+D221 -> 41.95 | E222: =E217+E218+E219++E220+E221 -> 20.71 | F222: =F217+F218+F219++F220+F221 -> 79.15 | G222: =G217+G218+G219++G220+G221 -> 723.98 | H222: =H217+H218+H219++H220+H221 -> 47.63
B223: Распределение калорийности между приемами пищи в течении дня % | I223: =G222/G228 -> 24.7%
A224: второй ужин: | B224: Ряженка 2,5% | C224: 200 | D224: 5.8 | E224: 5 | F224: 8.4 | G224: 102 | H224: 0.6 | I224: №386 Сб 2017 шк
A225: с 21.00 по 21.30 | B225: Пицца открытая с копченостями | C225: 85 | D225: 8.58 | E225: 9.44 | F225: 24.02 | G225: 215 | H225: 2.01
B226: Итого | C226: 285 | D226: =D224+D225 -> 14.38 | E226: =E224+E225 -> 14.44 | F226: =F224+F225 -> 32.42 | G226: =G224+G225 -> 317 | H226: =H224+H225 -> 2.61
B227: Распределение калорийности между приемами пищи в течении дня % | I227: =G226/G228 -> 10.8%
B228: ВСЕГО ЗА ШЕСТОЙ ДЕНЬ: | C228: =C203+C211+C215+C222+C226 -> 2904 | D228: 120.3 | E228: 99.74 | F228: 373.68 | G228: 2928.44 | H228: 87.48 | I228: =I204+I212+I216+I223+I227 -> 100.00%
A235: Прием пищи | B235: Наименование блюда и продуктов время приема пищи | C235: Выход в граммах | D235: Б | E235: Ж | F235: У | G235: Энер.ценность (ККАЛ) | H235: Витамин С | I235: № Рецептуры (сборник рецептуры блюд и кулинарных изделий для предприятий общественного питания 2017 г.)
A236: 1 | B236: 2 | C236: 3 | D236: 6 | E236: 7 | F236: 8 | G236: 9 | H236: 10 | I236: 11
... 270 more rows

Sheet примерное меню для 1-4 классов
B2: Примерное двухнедельное меню для обучающихся в общеобразовательных организациях с 1-4 классы (Горячий завтрак)
A3: Номер рецептуры | B3: Прием пищи | C3: Наименование блюда | D3: Выход,г | E3: Белки,г | F3: Жиры,г | G3: Углеводы,г | H3: Калорийность,ккал | I3: Витамин В1,мг | J3: Витамин С,мг | K3: Витамин А,мг | L3: Витамин Е,мг | M3: Са,мг | N3: Р,мг | O3: Mg,мг | P3: Fe,мг
B4: 1 | C4: 2 | D4: 3 | E4: 4 | F4: 5 | G4: 6 | H4: 7 | I4: 8 | J4: 9 | K4: 10 | L4: 11 | M4: 12 | N4: 13 | O4: 14 | P4: 15
A5: 71/2015,дели | B5: 1-ая неделя | C5: Помидоры свежие | D5: 60 | E5: 0.66 | F5: 0.12 | G5: 2.28 | H5: 14.00 | I5: 0.04 | J5: 15.00 | K5: 0 | L5: 0.42 | M5: 8.4 | N5: 15.6 | O5: 12 | P5: 0.54
A6: ттк | B6: 1 день | C6: Котлеты (биточки,шницели рубленные из говядины) | D6: 80 | E6: 8.2 | F6: 9.9 | G6: 10.21 | H6: 151 | I6: 0.05 | J6: 0.05 | K6: 2.08 | L6: 2.51 | M6: 27.8 | N6: 112.1 | O6: 22.1 | P6: 1.15
A7: 508/2004,сб шк | C7: Каша гречневая рассыпчатая с маслом | D7: 150/5 | E7: 3.6 | F7: 7 | G7: 29 | H7: 193 | I7: 0.292 | J7: 0 | K7: 41 | L7: 0.518 | M7: 27.352 | N7: 180.553 | O7: 104.55 | P7: 3.501
A8: 693/2004,сб шк | C8: Какао с молоком | D8: 200 | E8: 3.78 | F8: 0.67 | G8: 21 | H8: 105 | I8: 0.2 | J8: 1.33 | K8: 0 | L8: 0 | M8: 133.33 | N8: 111.11 | O8: 25.56 | P8: 2
C9: Хлеб сельский 1 сорт | D9: 20 | E9: 1.3 | F9: 0.2 | G9: 7 | H9: 35 | I9: 0.02 | J9: 0 | K9: 0 | L9: 0.2 | M9: 4.7 | N9: 21.1 | O9: 6.3 | P9: 0.52
C10: Хлеб белый 1 сорт | D10: 30 | E10: 2.28 | F10: 0.24 | G10: 14.76 | H10: 71 | I10: 0.033 | J10: 0 | K10: 0 | L10: 0.33 | M10: 6 | N10: 19.5 | O10: 4.2 | P10: 0.33
C11: итого: | E11: =E5+E6+E7+E8+E9+E10 -> 19.82 | F11: =F5+F6+F7+F8+F9+F10 -> 18.13 | G11: 84.25 | H11: 569.00 | I11: 0.63 | J11: 16.38 | K11: 43.08 | L11: 3.98 | M11: 207.58 | N11: 459.96 | O11: 174.71 | P11: 8.04
A13: 338/2015 дели | B13: 2 день | C13: Фрукты(яблоки) | D13: 110 | E13: 0.33 | F13: 0.44 | G13: 9.46 | H13: 44 | I13: 0.033 | J13: 11 | K13: 0 | L13: 0.22 | M13: 17.6 | N13: 12.1 | O13: 9.9 | P13: 2.42
A14: 71/2015 дели | C14: Огурцы свежие(порциями) | D14: 60 | E14: 0.42 | F14: 0.06 | G14: 1.14 | H14: 7 | I14: 0.018 | J14: 4.2 | K14: 0 | L14: 0.06 | M14: 10.2 | N14: 18 | O14: 8.4 | P14: 0.3
A15: ттк,2019 | C15: Жаркое из птицы | D15: 50/150 | E15: 13.3 | F15: 17 | G15: 28.45 | H15: 320 | I15: 0.222 | J15: 27.825 | K15: 28.5 | L15: 2.174 | M15: 35.535 | N15: 197.84 | O15: 47.778 | P15: 2.26
A16: 692/2004 | C16: Кофейный напиток с молоком | D16: 200 | E16: 2.5 | F16: 1.8 | G16: 20.5 | H16: 108 | I16: 0 | J16: 0.26 | K16: 0.05 | L16: 0 | M16: 53.33 | N16: 39.15 | O16: 6.09 | P16: 0.1
C17: Хлеб сельский 1 сорт | D17: 20 | E17: 1.3 | F17: 0.2 | G17: 7 | H17: 35 | I17: 0.02 | J17: 0 | K17: 0 | L17: 0.2 | M17: 4.7 | N17: 21.1 | O17: 6.3 | P17: 0.52
C18: Хлеб белый 1 сорт | D18: 30 | E18: 2.28 | F18: 0.24 | G18: 14.76 | H18: 71 | I18: 0.033 | J18: 0 | K18: 0 | L18: 0.33 | M18: 6 | N18: 19.5 | O18: 4.2 | P18: 0.33
C19: итого: | E19: =E13+E14+E15+E16+E17+E18 -> 20.13 | F19: =F13+F14+F15+F16+F17+F18 -> 19.74 | G19: 81.31 | H19: 585 | I19: 0.326 | J19: 43.285 | K19: 28.55 | L19: 2.984 | M19: 127.365 | N19: 307.69 | O19: 82.668 | P19: 5.93
A21: 43/2004 сб шк | B21: 3 день | C21: Салат из белокочанной капусты | D21: 60 | E21: 0.933 | F21: 3.051 | G21: 5.641 | H21: 54 | I21: 0.018 | J21: 21.684 | K21: 0 | L21: 1.392 | M21: 25.624 | N21: 18.316 | O21: 9.949 | P21: 0.345
A22: 437/2004 сбшк | C22: Гуляш из говядины | D22: 50/50 | E22: 9.1 | F22: 12.4 | G22: 10.5 | H22: 190 | I22: 0.03 | J22: 2.44 | K22: 0 | L22: 0.41 | M22: 7.6 | N22: 128.9 | O22: 17.5 | P22: 1.9
A23: 332/сб шк | C23: Макароны отварные | D23: 150 | E23: 5.652 | F23: 4.469 | G23: 28.00 | H23: 175.00 | I23: 0.087 | J23: 0 | K23: 21.00 | L23: 0.818 | M23: 16.47 | N23: 47.07 | O23: 8.49 | P23: 0.87
A24: 685/2004сбшк | C24: Чай с сахаром | D24: 200/15 | E24: 0.2 | G24: 13.7 | H24: 56 | I24: 0.008 | J24: 3.75 | K24: 0 | L24: 0.075 | M24: 9.97 | N24: 7.5 | O24: 6.5 | P24: 0.197
C25: Хлеб сельский 1 сорт | D25: 20 | E25: 1.3 | F25: 0.2 | G25: 7 | H25: 35 | I25: 0.02 | J25: 0 | K25: 0 | L25: 0.2 | M25: 4.7 | N25: 21.1 | O25: 6.3 | P25: 0.52
C26: Хлеб белый 1 сорт | D26: 30 | E26: 2.28 | F26: 0.24 | G26: 14.76 | H26: 71 | I26: 0.033 | J26: 0 | K26: 0 | L26: 0.33 | M26: 6 | N26: 19.5 | O26: 4.2 | P26: 0.33
C27: итого: | E27: =E21+E22+E23+E24+E25+E26 -> 19.47 | F27: =F21+F22+F23+F24+F25+F26 -> 20.36 | G27: 79.60 | H27: 581.00 | I27: 0.20 | J27: 27.87 | K27: 21.00 | L27: 3.23 | M27: 70.36 | N27: 242.39 | O27: 52.94 | P27: 4.16
A29: ттк | B29: 4 день | C29: Салат из моркови | D29: 60 | E29: 0.632 | F29: 6.043 | G29: 4.341 | H29: 74 | I29: 0.029 | J29: 2.43 | K29: 0 | L29: 2.834 | M29: 13.302 | N29: 26.85 | O29: 18.468 | P29: 0.358
A30: 234/2015 дели | C30: Котлеты рыбные | D30: 80 | E30: 8.2 | F30: 8.1 | G30: 7 | H30: 134 | I30: 0.08 | J30: 0.128 | K30: 8 | L30: 4 | M30: 33.28 | N30: 120.096 | O30: 22.64 | P30: 0.896
A31: 520/сб шк | C31: Пюре картофельное | D31: 150 | E31: 3.282 | F31: 4.657 | G31: 22.027 | H31: 143 | I31: 0.163 | J31: 25.943 | K31: 25.5 | L31: 0.181 | M31: 46.606 | N31: 97.336 | O31: 32.978 | P31: 1.231
A32: 693/2004 сб шк | C32: Какао с молоком | D32: 200 | E32: 3.78 | F32: 0.67 | G32: 21 | H32: 105 | I32: 0.2 | J32: 1.33 | K32: 0 | L32: 0 | M32: 133.33 | N32: 111.11 | O32: 25.56 | P32: 2
C33: Хлеб сельский 1 сорт | D33: 20 | E33: 1.3 | F33: 0.2 | G33: 7 | H33: 35 | I33: 0.02 | J33: 0 | K33: 0 | L33: 0.2 | M33: 4.7 | N33: 21.1 | O33: 6.3 | P33: 0.52
C34: Хлеб белый 1 сорт | D34: 30 | E34: 2.28 | F34: 0.24 | G34: 14.76 | H34: 71 | I34: 0.033 | J34: 0 | K34: 0 | L34: 0.33 | M34: 6 | N34: 19.5 | O34: 4.2 | P34: 0.33
C35: итого: | E35: =E29+E30+E31+E32+E33+E34 -> 19.47 | F35: =F29+F30+F31+F32+F33+F34 -> 19.91 | G35: 76.13 | H35: 562.00 | I35: 0.53 | J35: 29.83 | K35: 33.50 | L35: 7.55 | M35: 237.22 | N35: 395.99 | O35: 110.15 | P35: 5.34
A37: 338/2015 дели | B37: 5 день | C37: Фрукты (мандарин) | D37: 100 | E37: 0.5 | F37: 0.2 | G37: 7.5 | H37: 34 | I37: 0.03 | J37: 10 | K37: 0 | L37: 0.2 | M37: 16 | N37: 11 | O37: 9 | P37: 2.2
A38: 71/2015 дели | C38: Помидоры свежие(порциями) | D38: 60 | E38: 0.66 | F38: 0.12 | G38: 2.28 | H38: 14 | I38: 0.036 | J38: 15 | K38: 0 | L38: 0.42 | M38: 8.4 | N38: 15.6 | O38: 12 | P38: 0.54
A39: ттк | C39: Котлеты рубленные из птицы | D39: 80 | E39: 11 | F39: 13.5 | G39: 4.786 | H39: 185 | I39: 0.089 | J39: 1.888 | K39: 37.781 | L39: 4.426 | M39: 19.564 | N39: 154.618 | O39: 18.693 | P39: 1.304
A40: 511/2004 сб шк | C40: Рис отварной | D40: 150 | E40: 3.67 | F40: 4.9 | G40: 28.3 | H40: 172 | I40: 0.045 | J40: 0 | K40: 39.9 | L40: 0.27 | M40: 4.95 | N40: 82.35 | O40: 27 | P40: 0.54
A41: 686/2004 сб шк | C41: Чай с сахароми лимоним | D41: 200/15/7 | E41: 0.2 | F41: 0.1 | G41: 13.9 | H41: 57 | I41: 0 | J41: 1.12 | K41: 0 | L41: 0.01 | M41: 2.86 | N41: 1.34 | O41: 0.73 | P41: 0.08
C42: Хлеб сельский 1 сорт | D42: 20 | E42: 1.3 | F42: 0.2 | G42: 7 | H42: 35 | I42: 0.02 | J42: 0 | K42: 0 | L42: 0.2 | M42: 4.7 | N42: 21.1 | O42: 6.3 | P42: 0.52
C43: хлеб белый 1 сорт | D43: 30 | E43: 2.28 | F43: 0.24 | G43: 14.76 | H43: 71 | I43: 0.033 | J43: 0 | K43: 0 | L43: 0.33 | M43: 6 | N43: 19.5 | O43: 4.2 | P43: 0.33
C44: итого: | E44: =E37+E38+E39+E40+E41+E42+E43 -> 19.61 | F44: =F37+F38+F39+F40+F41+F42+F43 -> 19.26 | G44: 78.53 | H44: 568.00 | I44: 0.25 | J44: 28.01 | K44: 77.68 | L44: 5.86 | M44: 62.47 | N44: 305.51 | O44: 77.92 | P44: 5.51
A46: 20/2015 дели | B46: 6 день | C46: Салат из свежих огурцов с маслом | D46: 60 | E46: 0.576 | F46: 3.684 | G46: 1.848 | H46: 43 | I46: 0.024 | J46: 11.46 | K46: 0 | L46: 2.695 | M46: 16.062 | N46: 18.252 | O46: 9.996 | P46: 0.456
A47: 243/2015дели | C47: Сосиски отварные | D47: 100 | E47: 12.0 | F47: 7.6 | G47: 16 | H47: 180 | I47: 0.3 | J47: 0 | K47: 0 | L47: 0.5 | M47: 33.4 | N47: 182.8 | O47: 19.78 | P47: 2.4
A48: 332/сб шк | C48: Макароны отварные | D48: 150 | E48: 5.652 | F48: 4.469 | G48: 28.00 | H48: 175.00 | I48: 0.087 | J48: 0 | K48: 21.00 | L48: 0.818 | M48: 16.47 | N48: 47.07 | O48: 8.49 | P48: 0.87
A49: 685/2004 сб шк | C49: Чай с сахаром | D49: 200/15 | E49: 0.2 | F49: 0 | G49: 13.7 | H49: 56 | I49: 0.008 | J49: 3.75 | K49: 0 | L49: 0.075 | M49: 9.97 | N49: 7.5 | O49: 6.5 | P49: 0.197
C50: Хлеб сельский 1 сорт | D50: 20 | E50: 1.3 | F50: 0.2 | G50: 7 | H50: 35 | I50: 0.2 | J50: 0 | K50: 0 | L50: 0.2 | M50: 4.7 | N50: 21.1 | O50: 6.3 | P50: 0.52
C51: Хлеб белый 1 сорт | D51: 30 | E51: 2.28 | F51: 0.24 | G51: 14.76 | H51: 71 | I51: 0.033 | J51: 0 | K51: 0 | L51: 0.33 | M51: 6 | N51: 19.5 | O51: 4.2 | P51: 0.33
C52: Итого: | E52: =E46+E47+E48+E49+E50+E51 -> 22.01 | F52: =F46+F47+F48+F49+F50+F51 -> 16.19 | G52: 81.31 | H52: 560.00 | I52: 0.65 | J52: 15.21 | K52: 21.00 | L52: 4.62 | M52: 86.60 | N52: 296.22 | O52: 55.27 | P52: 4.77
B54: Примерное двухнедельное меню для обучающихся в общеобразовательных организациях с 1-4 классы (Горячий завтрак)
A56: Номер рецептуры | B56: Прием пищи | C56: Наименование блюда | D56: Выход,г | E56: Белки,г | F56: Жиры,г | G56: Углеводы,г | H56: Калорийность,ккал | I56: Витамин В1,мг | J56: Витамин С,мг | K56: Витамин А,мг | L56: Витамин Е,мг | M56: Са,мг | N56: Р,мг | O56: Mg,мг | P56: Fe,мг
A57: 338/2015дели | B57: 2 неделя | C57: Фрукты(апельсин) | D57: 150 | E57: 1.35 | F57: 0.3 | G57: 12.15 | H57: 57 | I57: 0.06 | J57: 90 | K57: 0 | L57: 0.3 | M57: 51 | N57: 34.5 | O57: 19.5 | P57: 0.45
A58: 71/2015 дели | B58: 1 день | C58: Огурцы свежие(порциями) | D58: 60 | E58: 0.42 | F58: 0.06 | G58: 1.14 | H58: 7 | I58: 0.018 | J58: 4.2 | K58: 0 | L58: 0.06 | M58: 10.2 | N58: 18 | O58: 8.4 | P58: 0.3
A59: 433/204 сб шк | C59: Говядина тушеная | D59: 60/30 | E59: 7.2 | F59: 11.8 | G59: 1.925 | H59: 143 | I59: 0.068 | J59: 1.155 | K59: 0 | L59: 3.62 | M59: 12.989 | N59: 192.851 | O59: 24.257 | P59: 2.801
A60: 508/2004 сб шк | C60: Каша гречневая рассыпчатая | D60: 150 | E60: 3.6 | F60: 7 | G60: 29 | H60: 193 | I60: 0.291 | J60: 0 | K60: 21 | L60: 0.468 | M60: 20.632 | N60: 177.928 | O60: 104.22 | P60: 3.448
A61: 693/2004 сб шк | C61: Какао с молоком | D61: 200 | E61: 3.78 | F61: 0.67 | G61: 21 | H61: 105 | I61: 0.2 | J61: 1.33 | K61: 0 | L61: 0 | M61: 133.33 | N61: 111.11 | O61: 25.56 | P61: 2 | Q61: 2
C62: Хлеб белый 1 сорт | D62: 30 | E62: 2.28 | F62: 0.24 | G62: 14.76 | H62: 71 | I62: 0.033 | J62: 0 | K62: 0 | L62: 0.33 | M62: 6 | N62: 19.5 | O62: 4.2 | P62: 0.33
C63: Хлеб сельский 1 сорт | D63: 20 | E63: 1.3 | F63: 0.2 | G63: 7 | H63: 35 | I63: 0.02 | J63: 0 | K63: 0 | L63: 0.2 | M63: 4.7 | N63: 21.1 | O63: 6.3 | P63: 0.52
C64: итого: | E64: =E57+E58+E59+E60+E61+E62+E63 -> 19.93 | F64: =F57+F58+F59+F60+F61+F62+F63 -> 20.27 | G64: 86.98 | H64: 611.00 | I64: 0.69 | J64: 96.69 | K64: 21.00 | L64: 4.98 | M64: 238.85 | N64: 574.99 | O64: 192.44 | P64: 9.85
A66: 71/2015дели | B66: 2 день | C66: Помидоры свежие(порциями) | D66: 60 | E66: 0.66 | F66: 0.12 | G66: 2.28 | H66: 14 | I66: 0.036 | J66: 15 | K66: 0 | L66: 0.42 | M66: 8.4 | N66: 15.6 | O66: 12 | P66: 0.54
A67: 291/2015 дели | C67: Плов с курицей | D67: 50/150 | E67: 14 | F67: 19.5 | G67: 42 | H67: 400 | I67: 0.064 | J67: 0.62 | K67: 34.27 | L67: 5.799 | M67: 22 | N67: 204 | O67: 40.6 | P67: 1.87
A68: 686/2004 сб шк | C68: Чай с сахаром и лимоном | D68: 200/15/7 | E68: 0.2 | F68: 0.1 | G68: 13.9 | H68: 57 | I68: 0 | J68: 1.12 | K68: 0 | L68: 0.01 | M68: 2.86 | N68: 1.34 | O68: 0.73 | P68: 0.08
C69: Хлеб белый 1 сорт | D69: 30 | E69: 2.28 | F69: 0.24 | G69: 14.76 | H69: 71 | I69: 0.033 | J69: 0 | K69: 0 | L69: 0.33 | M69: 6 | N69: 19.5 | O69: 4.2 | P69: 0.33
C70: Хлеб сельский 1 сорт | D70: 20 | E70: 1.3 | F70: 0.2 | G70: 7 | H70: 35 | I70: 0.02 | J70: 0 | K70: 0 | L70: 0.2 | M70: 4.7 | N70: 21.1 | O70: 6.3 | P70: 0.52
C71: итого: | E71: =E66+E67+E68+E69+E70 -> 18.44 | F71: =F66+F67+F68+F69+F70 -> 20.16 | G71: 79.94 | H71: 577 | I71: 0.153 | J71: 16.74 | K71: 34.27 | L71: 6.759 | M71: 43.96 | N71: 261.54 | O71: 63.83 | P71: 3.34
A73: 338/2015 дели | B73: 3 день | C73: Фрукты(яблоки) | D73: 100 | E73: 0.3 | F73: 0.4 | G73: 8.1 | H73: 40 | I73: 0.03 | J73: 10 | K73: 0 | L73: 0.02 | M73: 16 | N73: 11 | O73: 9 | P73: 2.2
A74: 43/2004 сб шк | C74: Салат из белокочанной капусты | D74: 60 | E74: 0.933 | F74: 3.051 | G74: 5.641 | H74: 54 | I74: 0.018 | J74: 21.684 | K74: 0 | L74: 1.392 | M74: 25.624 | N74: 18.316 | O74: 9.949 | P74: 0.345
A75: 234/2015дели | C75: Котлеты рыбные | D75: 80 | E75: 10.8 | F75: 11.8 | G75: 6.5 | H75: 175 | I75: 0.08 | J75: 0.128 | K75: 8 | L75: 4 | M75: 33.28 | N75: 120.096 | O75: 22.64 | P75: 0.896
A76: 312/2015дели | C76: Пюре картофельное | D76: 150 | E76: 3.282 | F76: 4.657 | G76: 22.027 | H76: 143 | I76: 0.163 | J76: 25.943 | K76: 25.5 | L76: 0.181 | M76: 46.606 | N76: 97.336 | O76: 32.978 | P76: 1.231
A77: 685/2004 сб шк | C77: Чай с сахаром | D77: 200/15 | E77: 0.5 | F77: 0 | G77: 13.7 | H77: 56 | I77: 0.008 | J77: 3.75 | K77: 0 | L77: 0.075 | M77: 9.97 | N77: 7.5 | O77: 6.5 | P77: 0.197
C78: Хлеб белый 1 сорт | D78: 30 | E78: 2.28 | F78: 0.24 | G78: 14.76 | H78: 71 | I78: 0.033 | J78: 0 | K78: 0 | L78: 0.33 | M78: 6 | N78: 19.5 | O78: 4.2 | P78: 0.33
C79: Хлеб сельский 1 сорт | D79: 20 | E79: 1.3 | F79: 0.2 | G79: 7 | H79: 35 | I79: 0.02 | J79: 0 | K79: 0 | L79: 0.2 | M79: 4.7 | N79: 21.1 | O79: 6.3 | P79: 0.52
C80: Итого: | E80: =E73+E74+E75+E76+E77+E78+E79 -> 19.40 | F80: =F73+F74+F75+F76+F77+F78+F79 -> 20.35 | G80: 77.73 | H80: 574.00 | I80: 0.35 | J80: 61.51 | K80: 33.50 | L80: 6.20 | M80: 142.18 | N80: 294.85 | O80: 91.57 | P80: 5.72
A82: ттк/2012 | B82: 4 день | C82: Салат из моркови | D82: 60 | E82: 0.632 | F82: 6.043 | G82: 4.3 | H82: 74 | I82: 0.029 | J82: 2.43 | K82: 0 | L82: 2.834 | M82: 13.302 | N82: 26.85 | O82: 18.468 | P82: 0.358
A83: ттк/2019 | C83: Птица запеченая | D83: 120 | E83: 6.7 | F83: 7.1 | G83: 4 | H83: 107 | I83: 0.113 | J83: 3.75 | K83: 48 | L83: 0.83 | M83: 21.08 | N83: 194.81 | O83: 24.52 | P83: 1.658
A84: 202/2015дели | C84: Макароны отварные | D84: 150 | E84: 5.652 | F84: 4.469 | G84: 28 | H84: 175 | I84: 0.087 | J84: 0 | K84: 21 | L84: 0.818 | M84: 16.47 | N84: 47.07 | O84: 8.49 | P84: 0.87
A85: 692/2004 | C85: Кофейный напиток с молоком | D85: 200 | E85: 2.5 | F85: 1.8 | G85: 20.5 | H85: 108 | I85: 0 | J85: 0.26 | K85: 0.05 | L85: 0 | M85: 53.33 | N85: 39.15 | O85: 6.09 | P85: 0.1
C86: Хлеб белый 1 сорт | D86: 30 | E86: 2.28 | F86: 0.24 | G86: 14.76 | H86: 71 | I86: 0.033 | J86: 0 | K86: 0 | L86: 0.33 | M86: 6 | N86: 19.5 | O86: 4.2 | P86: 0.33
C87: Хлеб сельский 1 сорт | D87: 20 | E87: 1.3 | F87: 0.2 | G87: 7 | H87: 35 | I87: 0.02 | J87: 0 | K87: 0 | L87: 0.20 | M87: 4.7 | N87: 21.1 | O87: 6.3 | P87: 0.52
C88: итого: | E88: =E82+E83+E84+E85+E86+E87 -> 19.06 | F88: =F82+F83+F84+F85+F86+F87 -> 19.85 | G88: 78.56 | H88: 570.00 | I88: 0.28 | J88: 6.44 | K88: 69.05 | L88: 5.01 | M88: 114.88 | N88: 348.48 | O88: 68.07 | P88: 3.84
A90: таб 24/1996сб | B90: 5 день | C90: Свекла отварная(дольками)с маслом | D90: 60 | E90: 0.819 | F90: 6.049 | G90: 4.807 | H90: 77 | I90: 0.011 | J90: 5.462 | K90: 0 | L90: 2.695 | M90: 20.209 | N90: 23.607 | O90: 12.016 | P90: 0.765
A91: 478/2004сб шк | C91: Запеканка картофельная с мясом и маслом | D91: 180/5 | E91: 12.6 | F91: 13 | G91: 9.2 | H91: 204 | I91: 0.213 | J91: 35.556 | K91: 20 | L91: 5.026 | M91: 27.951 | N91: 109.806 | O91: 41.551 | P91: 1.7
A92: 686/2204 сб шк | C92: Чай с сахаром и лимоном | D92: 200/15/7 | E92: 0.2 | F92: 0.1 | G92: 13.9 | H92: 57 | I92: 0 | J92: 1.12 | K92: 0 | L92: 0.01 | M92: 2.86 | N92: 1.34 | O92: 0.73 | P92: 0.08
C93: Хлеб белый 1 сорт | D93: 30 | E93: 2.3 | F93: 0.24 | G93: 14.76 | H93: 71 | I93: 0.033 | J93: 0 | K93: 0 | L93: 0.33 | M93: 6 | N93: 19.5 | O93: 4.2 | P93: 0.33
C94: Хлеб сельский 1 сорт | D94: 20 | E94: 1.3 | F94: 0.2 | G94: 7 | H94: 35 | I94: 0.02 | J94: 0 | K94: 0 | L94: 0.2 | M94: 4.7 | N94: 21.1 | O94: 6.3 | P94: 0.52
C95: итого: | E95: =E90+E91+E92+E93+E94 -> 17.20 | F95: =F90+F91+F92+F93+F94 -> 19.59 | G95: 49.67 | H95: 444.00 | I95: 0.28 | J95: 42.14 | K95: 20.00 | L95: 8.26 | M95: 61.72 | N95: 175.35 | O95: 64.80 | P95: 3.40
A97: 20/2015 | B97: 6 день | C97: Салат из свежих огурцов с маслом | D97: 60 | E97: 0.382 | F97: 6.049 | G97: 1.037 | H97: 60 | I97: 0.016 | J97: 3.822 | K97: 0 | L97: 2.695 | M97: 9.282 | N97: 16.5 | O97: 7.644 | P97: 0.273
A98: 243/2015дели | C98: Сосиски отварные | D98: 100 | E98: 12.0 | F98: 7.6 | G98: 16 | H98: 180 | I98: 0.3 | J98: 0 | K98: 0 | L98: 0.5 | M98: 33.4 | N98: 182.8 | O98: 19.78 | P98: 2.4
A99: 511/2004 сб шк | C99: Рис отварной | D99: 150 | E99: 3.7 | F99: 4.9 | G99: 28.3 | H99: 172 | I99: 0.045 | J99: 0 | K99: 39.9 | L99: 0.27 | M99: 4.95 | N99: 82.35 | O99: 27 | P99: 0.54
A100: 685/2004 сб шк | C100: Чай с сахаром | D100: 200/15 | E100: 0.2 | F100: 0 | G100: 13.7 | H100: 56 | I100: 0.008 | J100: 3.75 | K100: 0 | L100: 0.075 | M100: 9.97 | N100: 7.5 | O100: 6.5 | P100: 0.197
C101: Хлеб белый 1 сорт | D101: 30 | E101: 2.28 | F101: 0.24 | G101: 14.76 | H101: 71 | I101: 0.033 | J101: 0 | K101: 0 | L101: 0.33 | M101: 6 | N101: 19.5 | O101: 4.2 | P101: 0.33
C102: Хлеб сельский 1 сорт | D102: 20 | E102: 1.3 | F102: 0.2 | G102: 7 | H102: 35 | I102: 0.02 | J102: 0 | K102: 0 | L102: 0.2 | M102: 4.7 | N102: 21.1 | O102: 6.3 | P102: 0.52
C103: итого: | E103: =E97+E98+E99+E100+E101+E102 -> 19.83 | F103: =F97+F98+F99+F100+F101+F102 -> 18.99 | G103: 80.80 | H103: 574.00 | I103: 0.42 | J103: 7.57 | K103: 39.90 | L103: 4.07 | M103: 68.30 | N103: 329.75 | O103: 71.42 | P103: 4.26
